{"text_format":"1","workbook":"xlsx","n_sheets":25,"sheets":["ANASAYFA","OKUL BİL.GİR.","YÖNETMELİK","CEZA MAD","ÇAĞRI PUS.","ÇAĞ.PUSULASI KOM","İFADE TUT.","TANIK BİL.GİRİŞ","SAVUNMA TUT.","KARAR ÖRN","VELİ UYARI","VELİ  UYARI-2","TOPLU CEZA LİS.","CEZA ALAN ÖĞR. LİS.","TANIK İFA.TUT1","TANIK İFA.TUT2","TANIK İFA.TUT3","TANIK İFA.TUT4","TANIK İFA.TUT5","TANIK İFA.TUT6","TANIK İFA.TUT7","TANIK İFA.TUT8","Dikkat Edilecek Hus.","Açıklama","Sayfa2"],"not_rendered":{"charts":0,"images":14,"macros":1,"external_links":0,"defined_names":27,"comments":6,"pivot_tables":0},"unopened":[],"bounds":{"document_bytes":16777216,"sheet_cells":100000,"rows_first":2000,"rows_last":500,"rows_between":2000,"halvings":0,"cell_chars":16384,"cell_head_chars":4096},"cells_cut":0,"cells_raw":0,"read":"whole","date_system":"1900"}

{"sheet":"ANASAYFA","index":0,"n_rows":28,"n_cols":9,"rows_kept":28,"cut":false,"hidden":false,"merged":[[27,6,28,7],[27,8,28,9],[0,1,0,10],[17,11,18,11],[19,11,21,11],[22,11,24,11],[18,7,18,9],[21,8,21,9],[18,4,18,5],[19,4,19,5],[20,2,20,9],[3,2,3,9],[11,2,11,9],[10,4,10,9],[12,11,13,11],[9,1,11,1],[12,1,13,1],[13,4,13,9],[3,1,5,1],[6,1,8,1],[3,11,5,11],[6,11,8,11],[9,11,11,11],[7,4,7,9],[8,4,8,9],[6,4,6,9],[9,4,9,9],[4,9,5,9],[5,4,5,8],[4,4,4,8],[12,4,12,9],[14,6,14,9],[15,2,15,9],[17,1,18,1],[20,1,22,1],[16,4,16,9],[17,4,17,9],[19,7,19,9],[22,2,26,9]]}
[null,"    Hazırlayan :Alparslan TOYOĞLU                               DİSİPLİN İŞLERİ  PROGRAMI  (Versiyon : 1.5)                        Güncelleme Tar: ( 05 KASIM 2018)"]
[]
[]
[null,null,"ÖĞRENCİ  BİLGİLERİ"]
[null,null,"Adı -Soyadı",":","ALİ  SARIKAYA"]
[null,null,"TC Kimlik No",":",123548]
[null,null,"Sınıfı",":","11/C"]
[null,null,"Okul No",":",785]
[null,null,"Veli Adı - Soyadı",":","AYŞE SARIKAYA"]
[null,null,"Doğum Yeri/Tarihi",":","KAYSERİ / 01/05/2002"]
[null,null,"Adresi",":","KOCASİNAN /KAYSERİ"]
[null,null,"DİSPLİN OLAYI"]
[null,null,"Olayın Tarihi:",":","2018-11-05"]
[null,null,"Olayın Özeti",":","Tuvalette sigara içmek"]
[null,null,"Disiplin Kuruluna Çağrı Tarihi ",":","2018-11-06","Saati  :","10:30:00"]
[null,null,"VERİLEN CEZANIN"]
[null,8,"Yönetmelik Maddesi ",":",{"$f":"INDEX('CEZA MAD'!B1:B85,ANASAYFA!B17)","v":"ç) Tütün ve tütün mamullerini bulundurmak veya kullanmak"}]
[null,null,"Verilen Cezanın Türü",":",{"$f":"VLOOKUP(E17,'CEZA MAD'!B3:C87,2,FALSE)","v":"Kınama"}]
[null,null,"Kırılan Davranış Notu",":",{"$f":"IF(E18=\"Kınama\",(10),IF(E18=\"Okuldan Kısa Süreli Uzaklaştırma\",(20),IF(E18=\"Okul Değiştirme\",(40),IF(E18=\"Örgün Eğitim Dışına Çıkarma\",(80)))))","v":10},null,"Kalan Davranış Notu",{"$f":"IF(E18=\"Kınama\",(100-10),IF(E18=\"Okuldan Kısa Süreli Uzaklaştırma\",(100-20),IF(E18=\"Okul Değiştirme\",(100-40),IF(E18=\"Örgün Eğitim Dışına Çıkarma\",(100-80)))))","v":90}]
[null,2,"Okuldan Uzaklaştırma Süresi",":",{"$f":"INDEX('KARAR ÖRN'!Z10:Z16,ANASAYFA!B20)","v":0},null,"Cezalı Olduğu Günler"]
[null,null,"YÖNETMELİĞİN"]
[null,null,"Maddesi",":","164 .","Fıkrası",{"$f":"IF(E18=\"Kınama\",\"1\",IF(E18=\"Okuldan Kısa Süreli Uzaklaştırma\",\"2\",IF(E18=\"Okul Değiştirme\",\"3\",IF(E18=\"Örgün Eğitim Dışına Çıkarma\",\"4\"))))","v":"1"},"Bendi",{"$f":"VLOOKUP(E17,'CEZA MAD'!A3:C86,1)","v":"ç"}]
[null,null,"Davranış puanının indirilmesi\nMADDE 170- (1) Her ders yılı başında öğrencilerin davranış puanı   100’dür.\n(2) Ceza alan öğrencilerin davranış puanlarından;         a) Kınama cezası için  10,                   b) Okuldan kısa süreli uzaklaştırma cezası için  20,    \n                                         c) Okul değiştirme cezası için 40,                  ç) Örgün eğitim dışına çıkarma cezası için  80    puan indirilir."]
[]
[]
[]
[]
[null,null,null,null,null,null,"                   İletişim için :",null,"atoyoglu@gmail.com"]

{"sheet":"OKUL BİL.GİR.","index":1,"n_rows":96,"n_cols":12,"rows_kept":96,"cut":false,"hidden":false,"merged":[[0,1,0,5],[5,4,5,5],[1,3,1,5],[2,3,2,5],[3,3,3,5],[6,3,6,5],[15,3,15,5],[12,3,12,5],[11,3,11,5],[10,3,10,5],[9,3,9,5],[8,3,8,5],[7,3,7,5],[13,3,13,5],[14,3,14,5]]}
[null,"OKUL / KURUM BİLGİ GİRİŞİ"]
[null,"BAŞLIK -1",":","T.C."]
[null,"BAŞLIK -2",":","KOCASİNAN KAYMAKAMLIĞI",null,null,null,null,null,null,null,"1 Gün"]
[null,"OKUL / KURUM  ADI",":","Kocasinan 75.Yıl Cumhuriyet Anadolu  Lisesi Müdürlüğü",null,null,null,null,null,null,null,"2 Gün"]
[null,"OKUL / KURUM  RESMİ YAZI KODU",":",25354484,"GİDEN\nEVRAK NO",1]
[null,"EĞİTİM ÖĞRETİM YILI",":",{"$f":"INDEX(B81:B96,E6)","v":"2018 - 2019"},5]
[null,"OKUL MÜDÜRÜ ",":","Alparslan TOYOĞLU  ",null,null,null,null,null,null,null,"3 Gün"]
[null,"DİSPLİN KURULU  BAŞKANI (MÜDÜR YAR.)  ",":","Murat SANCAKÇEKEN",null,null,null,null,null,null,null,"4 Gün"]
[null,"KOMİSYON ÜYESİ (ÖĞRETMEN)",":","Figen Yeşil ÖNCÜL"]
[null,"KOMİSYON ÜYESİ (ÖĞRETMEN)",":","Alaattin KILIÇ"]
[null,"KOMİSYON ÜYESİ (OKUL AİLE BİR.TEMSİLCİSİ)",":","Hatice GÜRÜN"]
[null,"KOMİSYON ÜYESİ (ONUR KURULU 2.BAŞKANI)",":","Serpil İlksen DELİSOY"]
[]
[]
[]
[]
[]
[]
[]
[]
[]
[]
[]
[]
[]
[]
[]
[]
[]
[]
[]
[]
[]
[]
[]
[]
[]
[]
[]
[]
[]
[]
[]
[]
[]
[]
[]
[]
[]
[]
[]
[]
[]
[]
[]
[]
[]
[]
[]
[]
[]
[]
[]
[]
[]
[]
[]
[]
[]
[]
[]
[]
[]
[]
[]
[]
[]
[]
[]
[]
[null,"Eğitim Öğretim Yılı"]
[null,"2015 - 2016"]
[null,"2016 - 2017",2017]
[null,"2017 - 2018"]
[null,"2018 - 2019"]
[null,"2019 - 2020"]
[null,"2020 - 2021"]
[null,"2021 - 2022"]
[null,"2022 - 2023"]
[null,"2023 - 2024"]
[null,"2024 - 2025"]
[null,"2025 - 2026"]
[null,"2026 - 2027"]
[null,"2027 - 2028"]
[null,"2028 - 2029"]
[null,"2029 - 2030"]

{"sheet":"YÖNETMELİK","index":2,"n_rows":170,"n_cols":2,"rows_kept":170,"cut":false,"hidden":false,"merged":[]}
[null,"MİLLÎ EĞİTİM BAKANLIĞI ORTAÖĞRETİM KURUMLARI YÖNETMELİĞİ  \n(7 Eylül 2013 ; Resmî Gaz. 28758,  SON  DEĞİŞİKLİK  16 EYLÜL 2017 )"]
[null,"MİLLÎ EĞİTİM BAKANLIĞI ORTAÖĞRETİM KURUMLARI YÖNETMELİĞİ  (SON  DEĞİŞİKLİK  16 EYLÜL 2017 )"]
[null,"Disiplin cezaları"]
[null,"MADDE 163- (1) Öğrencilere, disiplin cezasını gerektiren davranış ve fiillerinin niteliklerine göre;"]
[null,"a) Kınama,"]
[null,"b) Okuldan kısa süreli uzaklaştırma,"]
[null,"c) Okul değiştirme,"]
[null,"ç) Örgün eğitim dışına çıkarma"]
[null,"cezalarından biri verilir.Ancak, kınama cezası yerine öğrenci ödül ve disiplin kurulunca Millî Eğitim Bakanlığı Eğitim Kurumları Sosyal Etkinlikler Yönetmeliği kapsamında belirlenen toplum hizmeti çalışmalarından biri de verilebilir. Bu durum e-Okul sistemine işlenmez."]
[null,"(2) Disipline konu olan olaylar okul öğrenci ödül ve disiplin kurulunda görüşülüp karara bağlandıktan sonra;"]
[null,"a) Kınama ve okuldan kısa süreli uzaklaştırma cezaları okul müdürünün,"]
[null,"b) Okul değiştirme cezası, ilçe öğrenci disiplin kurulunun,"]
[null,"c) Örgün eğitim dışına çıkarma cezası, il öğrenci disiplin kurulunun,  onayından sonra uygulanır."]
[null,"Disiplin cezasını gerektiren davranış ve fiiller"]
[null,"MADDE 164- (1) Kınama cezasını gerektiren davranışlar ve fiiller şunlardır:"]
["a","a) Okulu, çevresini ve eşyasını kirletmek,"]
["b","b) Yapması gereken görevleri yapmamak,"]
["c","c) Kılık-kıyafete ilişkin mevzuat hükümlerine uymamak,"]
["ç","ç) Tütün ve tütün mamullerini bulundurmak veya kullanmak"]
["d","d) Başkasına ait eşyayı izinsiz almak veya kullanmak,"]
["e","e) Yalan söylemek,"]
["f","f) Okula geldiği hâlde özürsüz eğitim ve öğretim faaliyetlerine, törenlere, sosyal etkinliklere ve okul pansiyonlarında etüde katılmamak, geç katılmak veya bunlardan erken ayrılmak"]
["g","g) Okul kütüphanesi, atölye, laboratuvar, pansiyon veya diğer bölümlerden aldığı kitap, araç-gereç ve malzemeyi, eksik vermek veya kötü kullanmak,"]
["ğ","ğ) Kaba ve saygısız davranmak,"]
["h","h) Dersin ve ders dışı faaliyetlerin akışını ve düzenini bozacak davranışlarda bulunmak,"]
["ı","ı) Kopya çekmek veya çekilmesine yardımcı olmak,"]
["i","i) Yatılı okullarda pansiyonu gece izinsiz terk etmek veya pansiyona geç gelmek,"]
["j","j) Yasaklanmış, müstehcen yayınları okula ve okula bağlı yerlere sokmak veya yanında bulundurmak,"]
["k","k) Üzerinde kumar oynamaya yarayan araç-gereç ve doküman bulundurmak,"]
["l","l) Bilişim araçlarını amacı dışında kullanmak,"]
["m","m) Alınan sağlık ve güvenlik tedbirlerine uymamak."]
["n","n) Ders saatleri içinde öğretmenin bilgisi ve kontrolü dışında bilişim araçlarını açık tutarak dersin akışını bozmak."]
[null,"(2) Okuldan kısa süreli uzaklaştırma cezasını gerektiren fiil ve davranışlar;"]
["a","a)  Kişilere, arkadaşlarına, okul yöneticilerine, öğretmenlerine ve diğer çalışanlarına karşı okul içinde ve dışında sözle, davranışla veya sosyal medya üzerinden hakaret etmek, hakareti paylaşmak, yaymak veya başkalarını bu davranışa kışkırtmak,"]
["b","b) Pansiyonun düzenini bozmak ,pansiyonu terk etmek, gece izinsiz dışarıda kalmak,"]
["c","c) Kişileri veya grupları dil, ırk, cinsiyet, siyasi düşünce, felsefi ve dini inançlarına göre ayırmayı, kınamayı, kötülemeyi amaçlayan davranışlarda bulunmak veya ayrımcılığı körükleyici semboller taşımak,"]
["ç","ç) İzinsiz gösteri, etkinlik ve toplantı düzenlemek, bu tür gösteri, etkinlik ve toplantılara katılmak,"]
["d","d) Her türlü ortamda kumar oynamak veya oynatmak,"]
["e","e) Okul kurallarının uygulanmasını ve öğrencilere verilen görevlerin yapılmasını engellemek,"]
["f","f) Başkalarına hakaret etmek,"]
["g","g) Müstehcen veya yasaklanmış araç, gereç, doküman ve benzerlerini dağıtmak, duvarlara ve diğer yerlere asmak, yapıştırmak, yazmak; bu amaçlar için okul araç-gerecini ve eklentilerini kullanmak"]
["ğ","ğ) Bilişim araçları veya sosyal medya yoluyla eğitim ve öğretim faaliyetlerine ve kişilere zarar vermek,"]
["h","h) Okula geldiği hâlde özürsüz eğitim ve öğretim faaliyetlerine, törenlere ve diğer sosyal etkinliklere katılmamayı, geç katılmayı veya erken ayrılmayı alışkanlık haline getirmek,"]
["ı","ı) Kavga etmek, başkalarına fiili şiddet uygulamak,"]
["i","i) Okul binası, eklenti ve donanımlarına, arkadaşlarının araç-gerecine siyasi, ideolojik veya müstehcen amaçlı yazılar yazmak, resim veya semboller çizmek,"]
["j","j) Toplu kopya çekmek veya çekilmesine yardımcı olmak,"]
["k","k) Sarhoşluk veren zararlı maddeleri bulundurmak veya kullanmak."]
["l","l) Millî ve manevi değerlere, genel ahlak ve adaba uygun olmayan tutum ve davranışlarda bulunmak"]
["m","m) Okul personelinin taşınır veya taşınmaz malına zarar vermek ve/veya malını tahrip etmek"]
[null,"(3) Okul değiştirme cezasını gerektiren fiil ve davranışlar;"]
["a","a) Türk Bayrağına, ülkeyi, milleti ve devleti temsil eden sembollere saygısızlık etmek,"]
["b","b) Millî ve manevi değerleri söz, yazı, resim veya başka bir şekilde aşağılamak; bu değerlere küfür ve hakaret etmek,"]
["c","c) Okul çalışanlarının görevlerini yapmalarına engel olmak,"]
["ç","ç) Hırsızlık yapmak, yaptırmak ve yapılmasına yardımcı olmak,"]
["d","d) Okulla ilişkisi olmayan kişileri, okulda veya eklentilerinde barındırmak,"]
["e","e)Resmî belgelerde değişiklik yapmak; sahte belgedüzenlemek ve kullanmak ve başkalarını yararlandırmak,"]
["f","f) Okul sınırları içinde herhangi bir yeri, izinsiz olarak eğitim ve öğretim amaçları dışında kullanmak veya kullanılmasına yardımcı olmak,"]
["g","g) Okula ait taşınır veya taşınmaz mallara zarar vermek,"]
["ğ","ğ) Ders, sınav, uygulama ve diğer faaliyetlerin yapılmasını engellemek veya arkadaşlarını bu eylemlere katılmaya kışkırtmak,"]
["h","h) Eğitim ve öğretim ortamına yaralayıcı, öldürücü silah ve patlayıcı madde ile her türlü aletleri getirmek veya bunları bulundurmak,"]
["ı","ı) Zor kullanarak veya tehditle kopya çekmek veya çekilmesini sağlamak,"]
["i","i) Bağımlılık yapan zararlı maddeleri bulundurmak veya kullanmak,"]
["j","j) Yerine başkasını sınava sokmak, başkasının yerine sınava girmek,"]
["k","k) Eğitim ve öğretim ortamında; siyasi ve ideolojik amaçlı eylem düzenlemek, başkalarını bu gibi eylemler düzenlemeye kışkırtmak, düzenlenmiş eylemlere katılmak,"]
["l","l) Siyasi partilere, bu partilere bağlı yan kuruluşlara, derneklere, sendikalara ve benzeri kuruluşlara üye olmak, üye kaydetmek, para toplamak ve bağışta bulunmaya zorlamak,"]
["m","m) Bilişim araçları veya sosyal medya yoluyla eğitim ve öğretimi engellemek, kişilere ağır derecede maddi ve manevi zarar vermek,"]
["n","n) İzin almadan okulla ilgili; bilgi vermek, basın toplantısı yapmak, bildiri yayınlamak ve dağıtmak, faaliyet tertip etmek veya bu kapsamdaki faaliyetlerde etkin rol almak,"]
["o","o) Bir kimseyi ya da grubu suç sayılan bir eylemi yapmaya, böyle eylemlere katılmaya, yalan bildirimde bulunmaya veya suçu yüklenmeye zorlamak,"]
["ö","ö) Zor kullanarak başkasına ait mal ve eşyaya el koymak, başkalarını bu işleri yapmaya zorlamak,"]
["p","p) Genel ahlak ve adaba uygun olmayan, yanlış algı oluşturabilecek tutum ve davranışları alışkanlık hâline getirmek,"]
["r","r) Kişilere, arkadaşlarına ve okul çalışanlarına; söz ve davranışlarla sarkıntılık yapmak, iftira etmek, başkalarını bu davranışlara kışkırtmak veya zorlamak, yapılan bu fiilleri sosyal medya yoluyla paylaşmak, yaymak,"]
["s","s) Pansiyon düzenini bozmayı, pansiyonu terk etmeyi ve gece izinsiz dışarıda kalmayı alışkanlık hâline getirmek,"]
["ş","ş) Kesici, delici, yaralayıcı ve benzeri aletlerle kendine zarar vermek."]
[null,"(4) Örgün eğitim dışına çıkarma cezasını gerektiren davranışlar;"]
["a","a) Türk Bayrağına, ülkeyi, milleti ve devleti temsil eden sembollere hakaret etmek,"]
["b","b) Türkiye Cumhuriyeti'nin devleti ve milletiyle bölünmez bütünlüğü ilkesine ve Türkiye Cumhuriyetinin insan haklarına ve Anayasanın başlangıcında belirtilen temel ilkelere dayalı millî, demokratik, laik ve sosyal bir hukuk devleti niteliklerine aykırı miting, forum, direniş, yürüyüş, boykot ve işgal gibi ferdi veya toplu eylemler düzenlemek; düzenlenmesini kışkırtmak ve düzenlenmiş bu gibi eylemlere etkin olarak katılmak veya katılmaya zorlamak,"]
["c","c) Kişileri veya grupları; dil, ırk, cinsiyet, siyasi düşünce, felsefi ve dini inançlarına göre ayırmayı, kınamayı, kötülemeyi amaçlayan bölücü ve yıkıcı toplu eylemler düzenlemek, katılmak, bu eylemlerin organizasyonunda yer almak,"]
["ç","ç) Kurul ve komisyonların çalışmasını tehdit veya zor kullanarak engellemek,"]
["d","d) Bağımlılık yapan zararlı maddelerin ticaretini yapmak,"]
["e","e) Okul ve eklentilerinde güvenlik güçlerince aranan kişileri saklamak ve barındırmak,"]
["f","f) Eğitim ve öğretim ortamını işgal etmek,"]
["g","g) Okul içinde ve dışında tek veya toplu hâlde okulun yönetici, öğretmen, eğitici personel, memur ve diğer personeline karşı saldırıda bulunmak, bu gibi hareketleri düzenlemek veya kışkırtmak,"]
["ğ","ğ) Okul çalışanlarının görevlerini yapmalarına engel olmak için fiili saldırıda bulunmak ve başkalarını bu yöndeki eylemlere kışkırtmak,"]
["h","h) Okulun taşınır veya taşınmaz mallarını kasıtlı olarak tahrip etmek,"]
["ı","ı) Yaralayıcı, öldürücü her türlü alet, silah, patlayıcı maddeleri kullanmak suretiyle bir kimseyi yaralamaya teşebbüs etmek, yaralamak, öldürmek, maddi veya manevi zarara yol açmak,"]
["i","i) Kişi veya kişilere her ne sebeple olursa olsun eziyet etmek; işkence yapmak veya yaptırmak, cinsel istismar ve bu konuda kanunların suç saydığı fiilleri işlemek,"]
["j","j) Çete kurmak, çetede yer almak, yol kesmek, adam kaçırmak; kapkaç ve gasp yapmak, fidye ve haraç almak,"]
["k","k) Yasa dışı örgütlerin ve kuruluşların, siyasi ve ideolojik görüşleri doğrultusunda propaganda yapmak, eylem düzenlemek, başkalarını bu gibi eylemleri düzenlemeye kışkırtmak, düzenlenmiş eylemlere etkin biçimde katılmak, bu kuruluşlara üye olmak, üye kaydetmek; para toplamak ve bağışta bulunmaya zorlamak,"]
["l","l)Bilişim araçları veya sosyal medya yoluyla; bölücü, yıkıcı, ahlak dışı ve şiddeti özendiren sesli, sözlü, yazılı ve görüntülü içerikler oluşturmak, bunları çoğaltmak, yaymak ve ticaretini yapmak."]
[null,"(5) Yukarıda belirtilenlerin dışında ve disiplin cezası verilmesini gerektiren fiil ve hâllere nitelik ve ağırlıkları itibarıyla\n benzer eylemlerde bulunanlara suça uygun cezalar verilir."]
[null,"Pansiyon, başka okul veya işletmedeki disiplin olayları"]
[null,"MADDE 165- (Değişik: RG 16/9/2017-30182) (1) Öğrencinin kayıtlı olduğu okul dışında; kaldığı pansiyonda, ders, kurs veya telafi eğitimi aldığı okullarda, disiplin olaylarına karışmaları hâlinde, olayın meydana geldiği okul tarafından; öğrencinin kayıtlı olduğu okuldan 168 inci madde kapsamında gerekli bilgi, belge ve görüşler alınarak gerekli araştırma/inceleme/soruşturma yapılır ve karar verilir. Olayla ilgili tanzim edilen dosya, gereği için öğrencinin kayıtlı olduğu okula gönderilir."]
[null,"(2) Staj çalışması veya meslek eğitimi görülen işletmelerde öğrencinin karıştığı disiplin olayları, kayıtlı bulunduğu okula bildirilir. Olay, okul müdürlüğünce soruşturularak sonuçlandırılır."]
[null,"(3) Soruşturma süreci ilgili okulların öğrenci ödül ve disiplin kurullarının işbirliği içerisinde yürütülür. Gerektiğinde öğrencinin kayıtlı olduğu okul müdürlüğünce, olayın meydana geldiği okulun ödül disiplin kurulu başkanı veya işletme yetkilisi, görüşlerine başvurmak üzere olayla ilgili öğrenci ödül ve disiplin kurulu toplantısına çağrılabilir. Ancak karar için oy kullanamazlar."]
[null,"(4) Öğrencinin kayıtlı bulunduğu okulda disiplin olaylarına karışması ve buna ilişkin inceleme/soruşturma sürdürülürken bir başka okula nakledilmesi durumunda, inceleme/soruşturmayı başlatan okul disiplin soruşturmasını tamamlar ve dosyayı yeni okuluna gönderir. Öğrenciye yeni okulu aracılığıyla tebligat yapılarak ceza uygulanır ve dosyasına işlenir. Ceza alan öğrenciyle ilgili karara itiraz, davranış puanının iade edilmesi ve cezanın dosyadan silinmesi gibi işlemler yeni okulu tarafından gerçekleştirilir."]
[null,"Cezaya neden olan davranış ve fiilin tekrarlanması"]
[null,"MADDE 166- (Değişik: RG 16/9/2017-30182) (1) Disiplin cezası verilmesine sebep olmuş bir fiil veya davranışın bir öğretim yılı içerisinde tekrarında veya aynı cezayı gerektiren farklı bir fiil veya davranışın gerçekleşmesinde bir derece ağır ceza uygulanır."]
[null,"DÖRDÜNCÜ BÖLÜM"]
[null,"Uygulama ile İlgili Esaslar ve Ceza Takdirinde Dikkat Edilecek Hususlar"]
[null,"Uygulama ile ilgili esaslar"]
[null,"MADDE 167- (1) Şikâyetler, gerçek ve/veya tüzel kişilerce okul müdürlüğüne yazılı olarak bildirilir. İsimsiz ve imzasız başvurular işleme alınmaz."]
[null,"(2) Disiplin soruşturmasını gerektiren ve doğrudan okul yönetimine duyurulan veya bildirilen cezai soruşturmayı gerektiren şikâyetler, yazılı olarak ilgililere zamanında iletilir."]
[null,"Ceza takdirinde dikkat edilecek hususlar"]
[null,"MADDE 168- (1) Disiplin cezaları takdir edilirken;"]
[null,"a) Öğrencinin 18 yaşına kadar çocuk olduğu,"]
[null,"b) Öğrencinin üstün yararı,"]
[null,"c) Soruşturma sürecinde gizlilik ilkesi,"]
[null,"ç) Sınıf rehber öğretmeni ve öğrenci velisinin görüşleri,"]
[null,"d) Öğrencinin ailesi ve çevresiyle ilgili bilgiler,"]
[null,"e) Öğrencinin kişisel özellikleri ve psikolojik durumu,"]
[null,"f) Fiil ve davranışın hangi şartlar altında yapıldığı, öğrenciyi tahrik unsurlar,"]
[null,"g) Öğrencinin yaşı ve cinsiyeti,"]
[null,"ğ) Öğrencinin derslerdeki ilgi ve başarısı,"]
[null,"h) Öğrencinin daha önce ceza alıp almadığı,"]
[null,"hususları göz önünde bulundurulur."]
[null,"(2) Olayın mahkemeye intikal etmesi disiplin cezasının uygulanmasını engellemez."]
[null,"(3) Öğrencinin daha önce ceza almamış olması, derslerinde başarılı olması ve davranışlarının olumlu olması durumunda rehberlik servisinin görüşü de alınarak bir alt ceza verilebilir."]
[null,"(4) (Değişik: RG 16/9/2017-30182) Ceza gerektiren davranış ve fiillerde bulunan öğrenciler, okul rehberlik servisinin veya rehberlik ve araştırma merkezi tarafından düzenlenen rapor ile okul yönetiminin kararına bağlı olarak rehabilite edici uygulamalara tabi tutulur.”"]
[null,"(5) (Değişik: RG 16/9/2017-30182) Özel eğitim ihtiyacı olan öğrencilerden zihinsel yetersizliğe ya da otizme sahip öğrencilerin yaptırım gerektiren davranış ve fiilleri gerçekleştirmesi halinde disiplin cezası uygulanmaz. Bu tür davranışlarda bulunan öğrenciler için Bireyselleştirilmiş Eğitim Programı Geliştirme Birimi gerekli tedbirleri alır. Ancak görme, işitme ve ortopedik yetersizliği olan öğrencilere ise yetersizliği olmayan öğrencilere uygulanan hükümler uygulanır.\n"]
[null,"Disiplin cezaları ile ilgili onay, itiraz ve tebliğ"]
[null,"MADDE 169- (1) Onay yetkisi okul müdüründe bulunanların dışındaki disiplin cezalarının onaylanmasıyla itiraza ilişkin dosya ve yazılar millî eğitim müdürlükleri aracılığıyla ilgili disiplin kurullarına gönderilir."]
[null,"(2) Okul öğrenci ödül ve disiplin kurulunda görüşülüp karara bağlanan disiplin cezalarından;"]
[null,"a) Kınama ve okuldan kısa süreli uzaklaştırma cezaları okul müdürünün,"]
[null,"b) Okul değiştirme cezası, ilçe öğrenci disiplin kurulunun,"]
[null,"c) Örgün eğitim dışına çıkarma cezası, il öğrenci disiplin kurulunun"]
[null,"onayından sonra uygulanır."]
[null,"(3) Cezalara itiraz; cezanın tebliğini izleyen beş iş günü içinde okul müdürü, 18 yaşını tamamlamış öğrenci veya öğrenci velisi tarafından okul müdürlüğü kanalıyla yapılır. Okul müdürlüğü, yazılı başvuruyu ve itiraz gerekçeleri hakkındaki görüşlerini, gerekli belgelerle birlikte başvurunun yapıldığı tarihten itibaren en geç beş iş günü içinde itirazı değerlendirmeye yetkili disiplin kuruluna sevk etmek üzere gönderir."]
[null,"a) Kınama ve okuldan kısa süreli uzaklaştırma cezalarına itiraz ilçe öğrenci disiplin kurulunca,"]
[null,"b) Okul değiştirme cezasına itiraz il öğrenci disiplin kurulunca,"]
[null,"c) Örgün eğitim dışına çıkarma cezasına itiraz üst disiplin kurulunca"]
[null,"değerlendirerek sonuçlandırır."]
[null,"(4) İtiraz sonucu verilen karar kesin olup yeniden itiraz edilemez."]
[null,"(5) Bütün cezalar, velilere 25/1/2012 tarihli ve 28184 sayılı Resmî Gazete’de yayımlanan Tebligat Kanununun Uygulanmasına Dair Yönetmelik hükümlerine uygun olarak bildirilir ve tebellüğ belgesi disiplin dosyasında saklanır."]
[null,"Davranış puanının indirilmesi"]
[null,"MADDE 170- (1) Her ders yılı başında öğrencilerin davranış puanı 100’dür."]
[null,"(2) Ceza alan öğrencilerin davranış puanlarından;"]
[null,"a)     Kınama cezası için 10,"]
[null,"b)     Okuldan kısa süreli uzaklaştırma cezası için 20,"]
[null,"c)     Okul değiştirme cezası için 40,"]
[null,"ç)    Örgün eğitim dışına çıkarma cezası için 80"]
[null,"puan indirilir."]
[null,"Cezaların işlenmesi, silinmesi, puan iadesi ve dosyaların saklanması"]
[null,"MADDE 171- (1) Öğrencilerin aldıkları cezalar, e-Okul sistemine işlenir."]
[null,"(2)   Ceza alan ve davranış puanı indirilmiş olan ancak davranışları olumlu yönde değişen, iyi hâlleri görülen ve olumsuz davranışları tekrarlamayan öğrencilerin durumları, okul öğrenci ödül ve disiplin kurulunca daha sonraki dönemde/dönemlerde, son sınıf öğrencileri ise ders yılı sonunda değerlendirilir. Cezalarının kaldırılması ve davranış puanlarının iadesi öngörülen öğrenciler öğretmenler kuruluna sunulur. Öğretmenler kurulunca cezası kaldırılan ve davranış puanı iade edilen öğrencilerin yeni durumları e-Okul sistemine işlenir.”"]
[null,"(3) Davranış puanı iade edilen ve disiplin cezası kaldırılan öğrencinin disiplin durumuna ilişkin bilgi istendiğinde, öğrencinin disiplin cezası bulunmadığı bildirilir."]
[null,"(4) Okul öğrenci ödül ve disiplin kurulu belgeleri ve soruşturma dosyası ilgili mevzuat hükümlerince saklanır."]
[null,"(5) Ödül ve disiplin işlemlerine ait veriler; Bakanlığın ilgili birimlerince e-Okul sistemi üzerinden alınır."]
[null,"Cezaların uygulanması"]
[null,"MADDE 172- (1) Okuldan kısa süreli uzaklaştırma cezası alan öğrenciler;"]
[null,"a) (Değişik: RG 16/9/2017-30182) Okulun açık olduğu sürede bir günden beş güne kadar okul binası, eklentileri ve işletmelerde yapılan her türlü eğitim ve öğretim etkinlikleri, sınav ile staj çalışmalarına katılamazlar. Bu süre özürsüz devamsızlıktan sayılır."]
[null,"b) Pansiyonlu okullardaki yatılı öğrencilerin, pansiyonda kalmasına izin verilebilir. Ancak diğer öğrencilerin huzur ve güvenini olumsuz etkileyecek öğrencilerin pansiyonda kalmalarına izin verilmez."]
[null,"c) Öğrencilerin ulusal ya da uluslararası etkinliklere katılıp katılmayacaklarına okul yönetimince karar verilir."]
[null,"(2) Okul değiştirme cezası alan öğrenciler;"]
[null,"a)  Başvurdukları millî eğitim müdürlüklerince istekleri de dikkate alınarak okul türleri ve bu Yönetmeliğin nakille ilgili hükümleri göz önünde bulundurularak zamana bağlı olmaksızın uygun okullara yerleştirilir. Aynı ilde öğrencinin devam edebileceği programın bulunmaması hâlinde Bakanlığın ilgili birimiyle işbirliği yapılarak gerekli tedbirler alınır.”"]
[null,"b) (Değişik: RG 16/9/2017-30182) Parasız yatılı öğrencilerin nakilleri, Millî Eğitim Bakanlığına Bağlı Resmi Okullarda Yatılılık, Bursluluk, Sosyal Yardımlar ve Okul Pansiyonları Yönetmeliği ve bu Yönetmeliğin nakille ilgili hükümlerine göre uygun okullara yapılır."]
[null,"c) Önceki okul müdürlüğüyle öğrenim gördüğü okul müdürlüğünce uygun görülmesi hâlinde en az bir öğretim yılı geçtikten sonra eski okullarına dönebilirler."]
[null,"ç) Öğrencinin kayıtlı olduğu okul dışında; kaldığı pansiyonda, ders, kurs veya telafi eğitimi aldığı okullarda, disiplin olaylarına karışıp bir başka okula nakledilen öğrencilerden; naklen geldiği okul tarafından okul değiştirme cezası verilenlere yeniden okul değişikliği yaptırılmaz ve nakil durumları, aldıkları cezayla ilişkilendirilerek kayıtlarda belirtilir. Süresi içinde itirazda bulunulması hâlinde, itiraza ilişkin karar verilinceye kadar ceza uygulanmaz."]
[null,"(3) Örgün eğitim dışına çıkarma cezası alan öğrenciler;"]
[null,"a) Akşam liseleri dışında devam zorunluluğu olan okullara kayıt yaptıramaz."]
[null,"b) Açık Öğretim Lisesi, Mesleki Açık Öğretim Lisesi veya Açık Öğretim İmam Hatip Lisesine gönderilir."]
[null,"Ceza alan öğrencilerin sınavları ((Değişik: RG 16/9/2017-30182) Ceza alan veya hakkında tedbir kararı verilen öğrencilerin sınavları)"]
[null,"MADDE 173 – (1) Okuldan kısa süreli uzaklaştırma cezası alan ya da hakkında verilen tedbir kararı doğrultusunda okuldan geçici olarak uzaklaştırılan öğrencilerin, bu sürede katılamadıkları sınavların yerine, okul yönetimlerince belirlenen tarihlerde sınavlara alınmaları sağlanır."]
[null,"Zararın ödetilmesi"]
[null,"MADDE 174- (1) Takdir edilen disiplin cezasının yanında okul ve kişi mallarına verilen zararlar, zarara yol açan öğrencilerin velilerine ödettirilir."]
[null,"(2) Zararın ödenmesinde zorluk çıkaran veliler hakkında,  27/9/2006 tarihli ve 2006/11058 sayılı Bakanlar Kurulu Kararıyla yürürlüğe konulan Kamu Zararlarının Tahsiline İlişkin Usul ve Esaslar Hakkında Yönetmelik hükümlerine göre işlem yapılır."]
[null,"Tedbir kararı"]
[null,"MADDE 175- (1) Müdür, disiplin olaylarında öğrenciyi bir taraftan okul öğrenci ödül ve disiplin kuruluna sevk etmekle birlikte, gerektiğinde kurula sevkten önce veya sonra, kovuşturmanın tamamlanmasını ve sonucunu beklemeden acele bir tedbir olmak üzere on iş gününü geçmemek kaydıyla millî eğitim müdürünü bilgilendirerek uygun göreceği süre kadar geçici olarak okuldan uzaklaştırabilir. Bu durumdaki öğrenciler, ders ve sınavlarla diğer etkinliklere alınmazlar. Hakkında tedbir kararı verilen öğrencinin okuldan uzaklaştırıldığı süre devamsızlıktan sayılmaz."]
[null,"(2) Tedbir kararının alınmasını izleyen en geç üç iş günü içinde disiplin işlemine başlanır ve okul öğrenci ödül ve disiplin kuruluna sevkinden itibaren en geç on iş günü içinde durumu karara bağlanır. Aksi takdirde alınan tedbir kararı, kendiliğinden kalkmış sayılır. Haklı ve zorlayıcı sebeplerin devamı hâlinde millî eğitim müdürünün onayına bağlı olarak tedbir kararı, iki kez daha uzatılabilir."]
[null,"(3) Yönetim tedbiri süresince disiplin işlemi sonuçlanmamışsa; öğrencinin okula devam edip etmeyeceği, pansiyondan yararlanıp yararlanmayacağı hususu ayrıca mahalli mülki idare amirinin onayıyla\n belirlenir."]
[null,"(4) Öğrencilerin neden olduğu olağanüstü durumlar karşısında müdür, tedbir olmak üzere okul ve pansiyonların eklentileriyle birlikte en çok beş iş günü eğitim ve öğretime kapatılması gerektiğini millî eğitim müdürlüğüne teklif edebilir."]

{"sheet":"CEZA MAD","index":3,"n_rows":84,"n_cols":3,"rows_kept":84,"cut":false,"hidden":true,"merged":[]}
[null,"ORTAÖĞRETİM KURUMLARI YÖNETMELİĞİNE GÖRE DİSİPLİN CEZASINI GEREKTİREN DAVRANIŞ VE FİİLLER"]
[]
[null,"* Madde : 164-1 * * *  KINAMA CEZASINI GEREKTİREN DAVRANIŞLAR   * * *"]
[]
["a","a) Okulu, çevresini ve eşyasını kirletmek,","Kınama"]
["b","b) Yapması gereken görevleri yapmamak,","Kınama"]
["c","c) Kılık-kıyafete ilişkin mevzuat hükümlerine uymamak,","Kınama"]
["ç","ç) Tütün ve tütün mamullerini bulundurmak veya kullanmak","Kınama"]
["d","d) Başkasına ait eşyayı izinsiz almak veya kullanmak,","Kınama"]
["e","e) Yalan söylemek,","Kınama"]
["f","f) Okula geldiği hâlde özürsüz eğitim ve öğretim faaliyetlerine, törenlere, sosyal etkinliklere ve okul pansiyonlarında etüde katılmamak, geç katılmak veya bunlardan erken ayrılmak","Kınama"]
["g","g) Okul kütüphanesi, atölye, laboratuvar, pansiyon veya diğer bölümlerden aldığı kitap, araç-gereç ve malzemeyi, eksik vermek veya kötü kullanmak,","Kınama"]
["ğ","ğ) Kaba ve saygısız davranmak,","Kınama"]
["h","h) Dersin ve ders dışı faaliyetlerin akışını ve düzenini bozacak davranışlarda bulunmak,","Kınama"]
["ı","ı) Kopya çekmek veya çekilmesine yardımcı olmak,","Kınama"]
["i","i) Yatılı okullarda pansiyonu gece izinsiz terk etmek veya pansiyona geç gelmek,","Kınama"]
["j","j) Yasaklanmış, müstehcen yayınları okula ve okula bağlı yerlere sokmak veya yanında bulundurmak,","Kınama"]
["k","k) Üzerinde kumar oynamaya yarayan araç-gereç ve doküman bulundurmak,","Kınama"]
["l","l) Bilişim araçlarını amacı dışında kullanmak,","Kınama"]
["m","m) Alınan sağlık ve güvenlik tedbirlerine uymamak.","Kınama"]
["n","n) Ders saatleri içinde öğretmenin bilgisi ve kontrolü dışında bilişim araçlarını açık tutarak dersin akışını bozmak.","Kınama"]
[]
[null,"*Madde: 164-2 * * OKULDAN KISA SÜRELİ UZAKLAŞTIRMA CEZASINI GEREKTİREN DAVRANIŞLAR** "]
[]
["a","a)  Kişilere, arkadaşlarına, okul yöneticilerine, öğretmenlerine ve diğer çalışanlarına karşı okul içinde ve dışında sözle, davranışla veya sosyal medya üzerinden hakaret etmek, hakareti paylaşmak, yaymak veya başkalarını bu davranışa kışkırtmak,","Okuldan Kısa Süreli Uzaklaştırma"]
["b","b) Pansiyonun düzenini bozmak ,pansiyonu terk etmek, gece izinsiz dışarıda kalmak,","Okuldan Kısa Süreli Uzaklaştırma"]
["c","c) Kişileri veya grupları dil, ırk, cinsiyet, siyasi düşünce, felsefi ve dini inançlarına göre ayırmayı, kınamayı, kötülemeyi amaçlayan davranışlarda bulunmak veya ayrımcılığı körükleyici semboller taşımak,","Okuldan Kısa Süreli Uzaklaştırma"]
["ç","ç) İzinsiz gösteri, etkinlik ve toplantı düzenlemek, bu tür gösteri, etkinlik ve toplantılara katılmak,","Okuldan Kısa Süreli Uzaklaştırma"]
["d","d) Her türlü ortamda kumar oynamak veya oynatmak,","Okuldan Kısa Süreli Uzaklaştırma"]
["e","e) Okul kurallarının uygulanmasını ve öğrencilere verilen görevlerin yapılmasını engellemek,","Okuldan Kısa Süreli Uzaklaştırma"]
["f","f) Başkalarına hakaret etmek,","Okuldan Kısa Süreli Uzaklaştırma"]
["g","g) Müstehcen veya yasaklanmış araç, gereç, doküman ve benzerlerini dağıtmak, duvarlara ve diğer yerlere asmak, yapıştırmak, yazmak; bu amaçlar için okul araç-gerecini ve eklentilerini kullanmak","Okuldan Kısa Süreli Uzaklaştırma"]
["ğ","ğ) Bilişim araçları veya sosyal medya yoluyla eğitim ve öğretim faaliyetlerine ve kişilere zarar vermek,","Okuldan Kısa Süreli Uzaklaştırma"]
["h","h) Okula geldiği hâlde özürsüz eğitim ve öğretim faaliyetlerine, törenlere ve diğer sosyal etkinliklere katılmamayı, geç katılmayı veya erken ayrılmayı alışkanlık haline getirmek,","Okuldan Kısa Süreli Uzaklaştırma"]
["ı","ı) Kavga etmek, başkalarına fiili şiddet uygulamak,","Okuldan Kısa Süreli Uzaklaştırma"]
["i","i) Okul binası, eklenti ve donanımlarına, arkadaşlarının araç-gerecine siyasi, ideolojik veya müstehcen amaçlı yazılar yazmak, resim veya semboller çizmek,","Okuldan Kısa Süreli Uzaklaştırma"]
["j","j) Toplu kopya çekmek veya çekilmesine yardımcı olmak,","Okuldan Kısa Süreli Uzaklaştırma"]
["k","k) Sarhoşluk veren zararlı maddeleri bulundurmak veya kullanmak.","Okuldan Kısa Süreli Uzaklaştırma"]
["l","l) Millî ve manevi değerlere, genel ahlak ve adaba uygun olmayan tutum ve davranışlarda bulunmak","Okuldan Kısa Süreli Uzaklaştırma"]
["m","m) Okul personelinin taşınır veya taşınmaz malına zarar vermek ve/veya malını tahrip etmek","Okuldan Kısa Süreli Uzaklaştırma"]
[]
[null," * 164-3 * * * OKUL DEĞİŞTİRME CEZASINI GEREKTİREN DAVRANIŞLAR  * * *  "]
[]
["a","a) Türk Bayrağına, ülkeyi, milleti ve devleti temsil eden sembollere saygısızlık etmek,","Okul Değiştirme"]
["b","b) Millî ve manevi değerleri söz, yazı, resim veya başka bir şekilde aşağılamak; bu değerlere küfür ve hakaret etmek,","Okul Değiştirme"]
["c","c) Okul çalışanlarının görevlerini yapmalarına engel olmak,","Okul Değiştirme"]
["ç","ç) Hırsızlık yapmak, yaptırmak ve yapılmasına yardımcı olmak,","Okul Değiştirme"]
["d","d) Okulla ilişkisi olmayan kişileri, okulda veya eklentilerinde barındırmak,","Okul Değiştirme"]
["e","e)Resmî belgelerde değişiklik yapmak; sahte belgedüzenlemek ve kullanmak ve başkalarını yararlandırmak,","Okul Değiştirme"]
["f","f) Okul sınırları içinde herhangi bir yeri, izinsiz olarak eğitim ve öğretim amaçları dışında kullanmak veya kullanılmasına yardımcı olmak,","Okul Değiştirme"]
["g","g) Okula ait taşınır veya taşınmaz mallara zarar vermek,","Okul Değiştirme"]
["ğ","ğ) Ders, sınav, uygulama ve diğer faaliyetlerin yapılmasını engellemek veya arkadaşlarını bu eylemlere katılmaya kışkırtmak,","Okul Değiştirme"]
["h","h) Eğitim ve öğretim ortamına yaralayıcı, öldürücü silah ve patlayıcı madde ile her türlü aletleri getirmek veya bunları bulundurmak,","Okul Değiştirme"]
["ı","ı) Zor kullanarak veya tehditle kopya çekmek veya çekilmesini sağlamak,","Okul Değiştirme"]
["i","i) Bağımlılık yapan zararlı maddeleri bulundurmak veya kullanmak,","Okul Değiştirme"]
["j","j) Yerine başkasını sınava sokmak, başkasının yerine sınava girmek,","Okul Değiştirme"]
["k","k) Eğitim ve öğretim ortamında; siyasi ve ideolojik amaçlı eylem düzenlemek, başkalarını bu gibi eylemler düzenlemeye kışkırtmak, düzenlenmiş eylemlere katılmak,","Okul Değiştirme"]
["l","l) Siyasi partilere, bu partilere bağlı yan kuruluşlara, derneklere, sendikalara ve benzeri kuruluşlara üye olmak, üye kaydetmek, para toplamak ve bağışta bulunmaya zorlamak,","Okul Değiştirme"]
["m","m) Bilişim araçları veya sosyal medya yoluyla eğitim ve öğretimi engellemek, kişilere ağır derecede maddi ve manevi zarar vermek,","Okul Değiştirme"]
["n","n) İzin almadan okulla ilgili; bilgi vermek, basın toplantısı yapmak, bildiri yayınlamak ve dağıtmak, faaliyet tertip etmek veya bu kapsamdaki faaliyetlerde etkin rol almak,","Okul Değiştirme"]
["o","o) Bir kimseyi ya da grubu suç sayılan bir eylemi yapmaya, böyle eylemlere katılmaya, yalan bildirimde bulunmaya veya suçu yüklenmeye zorlamak,","Okul Değiştirme"]
["ö","ö) Zor kullanarak başkasına ait mal ve eşyaya el koymak, başkalarını bu işleri yapmaya zorlamak,","Okul Değiştirme"]
["p","p) Genel ahlak ve adaba uygun olmayan, yanlış algı oluşturabilecek tutum ve davranışları alışkanlık hâline getirmek,","Okul Değiştirme"]
["r","r) Kişilere, arkadaşlarına ve okul çalışanlarına; söz ve davranışlarla sarkıntılık yapmak, iftira etmek, başkalarını bu davranışlara kışkırtmak veya zorlamak, yapılan bu fiilleri sosyal medya yoluyla paylaşmak, yaymak,","Okul Değiştirme"]
["s","s)  Pansiyon düzenini bozmayı, pansiyonu terk etmeyi ve gece izinsiz dışarıda kalmayı alışkanlık hâline getirmek,","Okul Değiştirme"]
["ş","ş)  Kesici, delici, yaralayıcı ve benzeri aletlerle kendine zarar vermek.","Okul Değiştirme"]
[]
[null," * 164-4 * * * ÖRGÜN EĞİTİM DIŞINA ÇIKARMA CEZASINI GEREKTİREN DAVRANIŞLAR   * * *"]
[]
["a","a) Türk Bayrağına, ülkeyi, milleti ve devleti temsil eden sembollere hakaret etmek,","Örgün eğitim dışına çıkarma"]
["b","b) Türkiye Cumhuriyeti'nin devleti ve milletiyle bölünmez bütünlüğü ilkesine ve Türkiye Cumhuriyetinin insan haklarına ve Anayasanın başlangıcında belirtilen temel ilkelere dayalı millî, demokratik, laik ve sosyal bir hukuk devleti niteliklerine aykırı miting, forum, direniş, yürüyüş, boykot ve işgal gibi ferdi veya toplu eylemler düzenlemek; düzenlenmesini kışkırtmak ve düzenlenmiş bu gibi eylemlere etkin olarak katılmak veya katılmaya zorlamak,","Örgün Eğitim Dışına Çıkarma"]
["c","c) Kişileri veya grupları; dil, ırk, cinsiyet, siyasi düşünce, felsefi ve dini inançlarına göre ayırmayı, kınamayı, kötülemeyi amaçlayan bölücü ve yıkıcı toplu eylemler düzenlemek, katılmak, bu eylemlerin organizasyonunda yer almak,","Örgün Eğitim Dışına Çıkarma"]
["ç","ç) Kurul ve komisyonların çalışmasını tehdit veya zor kullanarak engellemek,","Örgün Eğitim Dışına Çıkarma"]
["d","d) Bağımlılık yapan zararlı maddelerin ticaretini yapmak,","Örgün Eğitim Dışına Çıkarma"]
["e","e) Okul ve eklentilerinde güvenlik güçlerince aranan kişileri saklamak ve barındırmak,","Örgün Eğitim Dışına Çıkarma"]
["f","f) Eğitim ve öğretim ortamını işgal etmek,","Örgün Eğitim Dışına Çıkarma"]
["g","g) Okul içinde ve dışında tek veya toplu hâlde okulun yönetici, öğretmen, eğitici personel, memur ve diğer personeline karşı saldırıda bulunmak, bu gibi hareketleri düzenlemek veya kışkırtmak,","Örgün Eğitim Dışına Çıkarma"]
["ğ","ğ) Okul çalışanlarının görevlerini yapmalarına engel olmak için fiili saldırıda bulunmak ve başkalarını bu yöndeki eylemlere kışkırtmak,","Örgün Eğitim Dışına Çıkarma"]
["h","h) Okulun taşınır veya taşınmaz mallarını kasıtlı olarak tahrip etmek,","Örgün Eğitim Dışına Çıkarma"]
["ı","ı) Yaralayıcı, öldürücü her türlü alet, silah, patlayıcı maddeleri kullanmak suretiyle bir kimseyi yaralamaya teşebbüs etmek, yaralamak, öldürmek, maddi veya manevi zarara yol açmak,","Örgün Eğitim Dışına Çıkarma"]
["i","i) Kişi veya kişilere her ne sebeple olursa olsun eziyet etmek; işkence yapmak veya yaptırmak, cinsel istismar ve bu konuda kanunların suç saydığı fiilleri işlemek,","Örgün Eğitim Dışına Çıkarma"]
["j","j) Çete kurmak, çetede yer almak, yol kesmek, adam kaçırmak; kapkaç ve gasp yapmak, fidye ve haraç almak,","Örgün Eğitim Dışına Çıkarma"]
["k","k) Yasa dışı örgütlerin ve kuruluşların, siyasi ve ideolojik görüşleri doğrultusunda propaganda yapmak, eylem düzenlemek, başkalarını bu gibi eylemleri düzenlemeye kışkırtmak, düzenlenmiş eylemlere etkin biçimde katılmak, bu kuruluşlara üye olmak, üye kaydetmek; para toplamak ve bağışta bulunmaya zorlamak,","Örgün Eğitim Dışına Çıkarma"]
["l","l)Bilişim araçları veya sosyal medya yoluyla; bölücü, yıkıcı, ahlak dışı ve şiddeti özendiren sesli, sözlü, yazılı ve görüntülü içerikler oluşturmak, bunları çoğaltmak, yaymak ve ticaretini yapmak.","Örgün Eğitim Dışına Çıkarma"]

{"sheet":"ÇAĞRI PUS.","index":4,"n_rows":44,"n_cols":10,"rows_kept":44,"cut":false,"hidden":false,"merged":[[43,2,43,5],[42,2,42,5],[8,2,8,3],[7,5,7,8],[31,5,31,8],[9,7,9,8],[18,2,18,5],[32,2,32,3],[9,2,9,3],[12,2,12,11],[14,9,14,11],[15,9,15,11],[17,2,17,5],[26,2,26,11],[29,4,29,9],[19,2,19,5],[25,2,25,11],[33,2,33,3],[0,2,0,11],[5,2,5,11],[1,2,1,11],[2,2,2,11],[3,2,3,11],[7,2,7,3],[27,2,27,11],[38,9,38,11],[39,9,39,11],[41,2,41,5],[33,7,33,8],[31,2,31,3],[36,2,36,11]]}
[null,null,"DİSİPLİN KURULU  ÖĞRENCİ ÇAĞRI PUSULASI"]
[null,null,{"$f":"('OKUL BİL.GİR.'!D2)","v":"T.C."}]
[null,null,{"$f":"('OKUL BİL.GİR.'!D3)","v":"KOCASİNAN KAYMAKAMLIĞI"}]
[null,null,{"$f":"('OKUL BİL.GİR.'!D4)","v":"Kocasinan 75.Yıl Cumhuriyet Anadolu  Lisesi Müdürlüğü"}]
[]
[null,null,"OKUL ÖĞRENCİ ÖDÜL VE DİSİPLİN  KURULU  ÇAĞRI PUSULASI"]
[]
[null,null,"ADI VE  SOYADI",null,":",{"$f":"ANASAYFA!E5","v":"ALİ  SARIKAYA"}]
[null,null,"SINIF VE NUMARASI",null,":",{"$f":"(ANASAYFA!E7)","v":"11/C"},{"$f":"(ANASAYFA!E8)","v":785}]
[null,null,"ÇAĞRI TARİHİ VE SAATİ",null,":",{"$f":"(ANASAYFA!E15)","v":"2018-11-06"},{"$f":"(ANASAYFA!G15)","v":"10:30:00"}]
[]
[]
[null,null,"          Orta Öğretim Kurumları Yönetmeliğinin Onuncu Kısım Yedinci  Bölüm  190.maddesi gereğince; Okul öğrenci ödül ve disiplin kurulu tarafından yürütülmekte  olan   disiplin soruşturması için, okulumuz disiplin kurulu toplantı odasında çağrı tarihi ve saatinde hazır bulunmanızı  rica ederim.             "]
[]
[null,null,null,null,null,null,null,null,null,{"$f":"('OKUL BİL.GİR.'!D8)","v":"Murat SANCAKÇEKEN"}]
[null,null,null,null,null,null,null,null,null,"Disiplin Kurulu Başkanı"]
[]
[]
[null,null,{"$f":"ANASAYFA!E5","v":"ALİ  SARIKAYA"}]
[null,null,"OKUDUM (İmza)"]
[]
[]
[]
[null,null,null,"……………………………………………………………………………………………………………………………………………….."]
[]
[null,null,{"$f":"(C2)","v":"T.C."}]
[null,null,{"$f":"(C3)","v":"KOCASİNAN KAYMAKAMLIĞI"}]
[null,null,"Kocasinan 75.Yıl Cumhuriyet Anadolu  Lisesi Müdürlüğü"]
[]
[null,null,null,null,"DİSİPLİN KURULU ÇAĞRI PUSULASI"]
[]
[null,null,"ADI VE  SOYADI",null,":",{"$f":"ANASAYFA!E5","v":"ALİ  SARIKAYA"}]
[null,null,"SINIF VE NUMARASI",null,":",{"$f":"(F9)","v":"11/C"},{"$f":"(G9)","v":785}]
[null,null,"ÇAĞRI TARİHİ VE SAATİ",null,":",{"$f":"(F10)","v":"2018-11-06"},{"$f":"(G10)","v":"10:30:00"},{"$f":"(H10)","v":"00:00:00"}]
[]
[]
[null,null,{"$f":"(C13)","v":"          Orta Öğretim Kurumları Yönetmeliğinin Onuncu Kısım Yedinci  Bölüm  190.maddesi gereğince; Okul öğrenci ödül ve disiplin kurulu tarafından yürütülmekte  olan   disiplin soruşturması için, okulumuz disiplin kurulu toplantı odasında çağrı tarihi ve saatinde hazır bulunmanızı  rica ederim.             "}]
[]
[null,null,null,null,null,null,null,null,null,{"$f":"(J15)","v":"Murat SANCAKÇEKEN"}]
[null,null,null,null,null,null,null,null,null,"Disiplin Kurulu Başkanı"]
[]
[]
[null,null,{"$f":"ANASAYFA!E5","v":"ALİ  SARIKAYA"}]
[null,null,"OKUDUM (İmza)"]

{"sheet":"ÇAĞ.PUSULASI KOM","index":5,"n_rows":30,"n_cols":11,"rows_kept":30,"cut":false,"hidden":false,"merged":[[29,6,29,9],[6,3,6,6],[24,3,24,5],[24,6,24,9],[24,10,24,11],[26,3,26,5],[8,2,8,11],[10,9,10,11],[11,9,11,11],[25,6,25,9],[29,10,29,11],[29,3,29,5],[27,10,27,11],[25,3,25,5],[0,2,0,11],[26,6,26,9],[27,6,27,9],[28,6,28,9],[25,10,25,11],[28,10,28,11],[1,2,1,11],[4,2,4,11],[2,2,2,11],[27,3,27,5],[28,3,28,5],[20,3,20,6],[21,3,21,6],[22,3,22,6],[26,10,26,11],[3,2,3,11]]}
[null,null," DİSİPLİN  KURULU ÜYELERİ İÇİN  ÇAĞRI PUSULASI"]
[null,null,"OKUL ÖĞRENCİ ÖDÜL VE DİSİPLİN  KURULU  ÇAĞRI PUSULASI"]
[null,null,{"$f":"('OKUL BİL.GİR.'!D2)","v":"T.C."}]
[null,null,{"$f":"('OKUL BİL.GİR.'!D3)","v":"KOCASİNAN KAYMAKAMLIĞI"}]
[null,null,{"$f":"UPPER('OKUL BİL.GİR.'!D4)","v":"KOCASİNAN 75.YIL CUMHURİYET ANADOLU  LİSESİ MÜDÜRLÜĞÜ"}]
[]
[null,null,"KONU:","İfadelerin Alınması"]
[]
[null,null,"          Orta Öğretim Kurumları Yönetmeliğinin Onuncu Kısım Yedinci  Bölüm  190.maddesi gereğince; Okul öğrenci ödül ve disiplin kurulu tarafından yürütülmekte olan   disiplin soruşturması için, okulumuz disiplin kurulu toplantı odasında çağrı tarihi ve saatinde hazır bulunmanızı  rica ederim.             "]
[]
[null,null,null,null,null,null,null,null,null,{"$f":"('OKUL BİL.GİR.'!D8)","v":"Murat SANCAKÇEKEN"}]
[null,null,null,null,null,null,null,null,null,"Disiplin Kurulu Başkanı"]
[]
[]
[]
[]
[]
[]
[]
[]
[null,null,"TARİH",{"$f":"(ANASAYFA!E15)","v":"2018-11-06"}]
[null,null,"YER","MÜDÜR YARD.ODASI"]
[null,null,"SAAT",{"$f":"(ANASAYFA!G15)","v":"10:30:00"}]
[]
[null,null,"Sıra No","Adı Soyadı",null,null,"Görevi",null,null,null,"İmza"]
[null,null,1,{"$f":"('OKUL BİL.GİR.'!D8)","v":"Murat SANCAKÇEKEN"},null,null,{"$f":"('OKUL BİL.GİR.'!B8)","v":"DİSPLİN KURULU  BAŞKANI (MÜDÜR YAR.)  "}]
[null,null,2,{"$f":"('OKUL BİL.GİR.'!D9)","v":"Figen Yeşil ÖNCÜL"},null,null,{"$f":"('OKUL BİL.GİR.'!B9)","v":"KOMİSYON ÜYESİ (ÖĞRETMEN)"}]
[null,null,3,{"$f":"('OKUL BİL.GİR.'!D10)","v":"Alaattin KILIÇ"},null,null,{"$f":"('OKUL BİL.GİR.'!B10)","v":"KOMİSYON ÜYESİ (ÖĞRETMEN)"}]
[null,null,4,{"$f":"('OKUL BİL.GİR.'!D11)","v":"Hatice GÜRÜN"},null,null,{"$f":"('OKUL BİL.GİR.'!B11)","v":"KOMİSYON ÜYESİ (OKUL AİLE BİR.TEMSİLCİSİ)"}]
[null,null,5,{"$f":"('OKUL BİL.GİR.'!D12)","v":"Serpil İlksen DELİSOY"},null,null,{"$f":"('OKUL BİL.GİR.'!B12)","v":"KOMİSYON ÜYESİ (ONUR KURULU 2.BAŞKANI)"}]

{"sheet":"İFADE TUT.","index":6,"n_rows":48,"n_cols":12,"rows_kept":48,"cut":false,"hidden":false,"merged":[[0,2,0,11],[5,8,7,11],[11,3,11,5],[5,2,5,3],[6,2,6,3],[5,4,5,6],[6,4,6,6],[7,4,7,6],[1,2,1,11],[2,2,2,11],[3,2,3,10],[9,2,9,11],[8,2,8,11],[10,9,10,11],[10,6,10,8],[10,3,10,5],[5,7,7,7],[46,6,46,8],[48,6,48,8],[48,9,48,10],[47,6,47,8],[47,9,47,10],[44,9,44,11],[45,9,45,11],[46,9,46,11],[11,9,11,11],[11,6,11,8],[44,7,44,8],[45,7,45,8]]}
[null,null,"ÖĞRENCİ  İFADE TUTANAĞI"]
[null,null,{"$f":"UPPER('OKUL BİL.GİR.'!D4)","v":"KOCASİNAN 75.YIL CUMHURİYET ANADOLU  LİSESİ MÜDÜRLÜĞÜ"}]
[null,null,"DİSİPLİN KURULU  İFADE ALMA TUTANAĞI"]
[null,null,"                                                    (Öğrenci İfade Tutanağı)",null,null,null,null,null,null,null,null,{"$f":"TODAY()","v":"2018-12-26"}]
[]
[null,null,"ADI- SOYADI                 ",null,{"$f":"(ANASAYFA!E5)","v":"ALİ  SARIKAYA"},null,null,"Olayın\n Özeti  ",{"$f":"(ANASAYFA!E14)","v":"Tuvalette sigara içmek"}]
[null,null,"SINIFI",null,{"$f":"(ANASAYFA!E7)","v":"11/C"}]
[null,null,"OKUL NO","                  ",{"$f":"(ANASAYFA!E8)","v":785}]
[null,null," SORULAR"]
[null,null,{"$f":"CONCATENATE(TEXT(ANASAYFA!E13,\"           gg.aa.yyyy\")&\"  tarihinde \"&ANASAYFA!E14&\" fiilini işlediğiniz  \"&TEXT( ANASAYFA!E13,\"gg.aa.yyyy\")&\"  tarihli  disiplin dilekçesinden  anlaşılmaktadır. Olayla ilgili bildiklerinizi ve söylemek istediklerinizi aşağıdaki bölüme yazınız.\")","v":"           05.11.2018  tarihinde Tuvalette sigara içmek fiilini işlediğiniz  05.11.2018  tarihli  disiplin dilekçesinden  anlaşılmaktadır. Olayla ilgili bildiklerinizi ve söylemek istediklerinizi aşağıdaki bölüme yazınız."}]
[null,null,null,{"$f":"('OKUL BİL.GİR.'!D9)","v":"Figen Yeşil ÖNCÜL"},null,null,{"$f":"('OKUL BİL.GİR.'!D10)","v":"Alaattin KILIÇ"},null,null,{"$f":"('OKUL BİL.GİR.'!D8)","v":"Murat SANCAKÇEKEN"}]
[null,null,null,"Üye (Öğretmen)",null,null,"Üye (Öğretmen)",null,null,"Disiplin Kurulu Başkanı"]
[]
[null,null,"………………….....…………...……….…...…….……………………………………………………………………………………………………………..……………………….………………."]
[null,null,"………………….....…………...……….…...…….……………………………………………………………………………………………………………..……………………….………………."]
[null,null,"………………….....…………...……….…...…….……………………………………………………………………………………………………………..……………………….………………."]
[null,null,"………………….....…………...……….…...…….……………………………………………………………………………………………………………..……………………….………………."]
[null,null,"………………….....…………...……….…...…….……………………………………………………………………………………………………………..……………………….………………."]
[null,null,"………………….....…………...……….…...…….……………………………………………………………………………………………………………..……………………….………………."]
[null,null,"………………….....…………...……….…...…….……………………………………………………………………………………………………………..……………………….………………."]
[null,null,"………………….....…………...……….…...…….……………………………………………………………………………………………………………..……………………….………………."]
[null,null,"………………….....…………...……….…...…….……………………………………………………………………………………………………………..……………………….………………."]
[null,null,"………………….....…………...……….…...…….……………………………………………………………………………………………………………..……………………….………………."]
[null,null,"………………….....…………...……….…...…….……………………………………………………………………………………………………………..……………………….………………."]
[null,null,"………………….....…………...……….…...…….……………………………………………………………………………………………………………..……………………….………………."]
[null,null,"………………….....…………...……….…...…….……………………………………………………………………………………………………………..……………………….………………."]
[null,null,"………………….....…………...……….…...…….……………………………………………………………………………………………………………..……………………….………………."]
[null,null,"………………….....…………...……….…...…….……………………………………………………………………………………………………………..……………………….………………."]
[null,null,"………………….....…………...……….…...…….……………………………………………………………………………………………………………..……………………….………………."]
[null,null,"………………….....…………...……….…...…….……………………………………………………………………………………………………………..……………………….………………."]
[null,null,"………………….....…………...……….…...…….……………………………………………………………………………………………………………..……………………….………………."]
[null,null,"………………….....…………...……….…...…….……………………………………………………………………………………………………………..……………………….………………."]
[null,null,"………………….....…………...……….…...…….……………………………………………………………………………………………………………..……………………….………………."]
[null,null,"………………….....…………...……….…...…….……………………………………………………………………………………………………………..……………………….………………."]
[null,null,"………………….....…………...……….…...…….……………………………………………………………………………………………………………..……………………….………………."]
[null,null,"………………….....…………...……….…...…….……………………………………………………………………………………………………………..……………………….………………."]
[null,null,"………………….....…………...……….…...…….……………………………………………………………………………………………………………..……………………….………………."]
[null,null,"………………….....…………...……….…...…….……………………………………………………………………………………………………………..……………………….………………."]
[null,null,"………………….....…………...……….…...…….……………………………………………………………………………………………………………..……………………….………………."]
[null,null,"………………….....…………...……….…...…….……………………………………………………………………………………………………………..……………………….………………."]
[null,null,"………………….....…………...……….…...…….……………………………………………………………………………………………………………..……………………….………………."]
[null,null,"………………….....…………...……….…...…….……………………………………………………………………………………………………………..……………………….………………."]
[null,null,"………………….....…………...……….…...…….……………………………………………………………………………………………………………..……………………….………………."]
[null,null,"………………….....…………...……….…...…….……………………………………………………………………………………………………………..……………………….………………."]
[]
[null,null,null,null,null,null,null,"İMZA : "]
[null,null,null,null,null,null,"                    ADI SOYADI   : ",null,null,{"$f":"ANASAYFA!E5","v":"ALİ  SARIKAYA"}]
[null,null,null,null,null,null,"                               TARİH   :"]

{"sheet":"TANIK BİL.GİRİŞ","index":7,"n_rows":33,"n_cols":5,"rows_kept":33,"cut":false,"hidden":false,"merged":[[0,2,0,5],[33,2,33,5],[1,2,1,5],[5,2,5,5],[9,2,9,5],[29,2,29,5],[25,2,25,5],[13,2,13,5],[17,2,17,5],[21,2,21,5]]}
[null,null,"TANIK  BİLGİ GİRİŞİ"]
[null,null,"1. TANIK BİLGİ GİRİŞİ"]
[null,null,"Adı -Soyadı",":","deneme"]
[null,null,"Sınıfı",":","11/A"]
[null,null,"Okul No",":",11111]
[null,null,"2. TANIK BİLGİ GİRİŞİ"]
[null,null,"Adı -Soyadı",":"]
[null,null,"Sınıfı",":"]
[null,null,"Okul No",":"]
[null,null,"3. TANIK BİLGİ GİRİŞİ"]
[null,null,"Adı -Soyadı",":"]
[null,null,"Sınıfı",":"]
[null,null,"Okul No",":"]
[null,null,"4. TANIK BİLGİ GİRİŞİ"]
[null,null,"Adı -Soyadı",":"]
[null,null,"Sınıfı",":"]
[null,null,"Okul No",":"]
[null,null,"5. TANIK BİLGİ GİRİŞİ"]
[null,null,"Adı -Soyadı",":"]
[null,null,"Sınıfı",":"]
[null,null,"Okul No",":"]
[null,null,"6. TANIK BİLGİ GİRİŞİ"]
[null,null,"Adı -Soyadı",":"]
[null,null,"Görevi",":"]
[null,null,"Ünvanı",":"]
[null,null,"7. TANIK BİLGİ GİRİŞİ"]
[null,null,"Adı -Soyadı",":"]
[null,null,"Görevi",":"]
[null,null,"Ünvanı",":"]
[null,null,"8. TANIK BİLGİ GİRİŞİ"]
[null,null,"Adı -Soyadı",":"]
[null,null,"Görevi",":"]
[null,null,"Ünvanı",":"]

{"sheet":"SAVUNMA TUT.","index":8,"n_rows":46,"n_cols":12,"rows_kept":46,"cut":false,"hidden":false,"merged":[[0,2,0,11],[11,3,11,5],[11,6,11,8],[11,9,11,11],[46,6,46,8],[46,9,46,10],[42,7,42,8],[42,9,42,11],[43,7,43,8],[43,9,43,11],[44,6,44,8],[45,6,45,8],[10,2,10,11],[12,3,12,5],[12,6,12,8],[12,9,12,11],[8,2,8,11],[9,2,9,11],[1,2,1,11],[2,2,2,11],[3,2,3,10],[5,2,5,3],[5,4,5,6],[5,7,7,7],[5,8,7,11],[6,2,6,3],[6,4,6,6],[7,4,7,6]]}
[null,null,"SAVUNMA  İFADE TUTANAĞI"]
[null,null,{"$f":"UPPER('OKUL BİL.GİR.'!D4)","v":"KOCASİNAN 75.YIL CUMHURİYET ANADOLU  LİSESİ MÜDÜRLÜĞÜ"}]
[null,null,"DİSİPLİN KURULU  İFADE ALMA TUTANAĞI"]
[null,null,"                                                           ( Savunma İfade Tutanağı)",null,null,null,null,null,null,null,null,{"$f":"TODAY()","v":"2018-12-26"}]
[]
[null,null,"ADI- SOYADI                 ",null,{"$f":"(ANASAYFA!E5)","v":"ALİ  SARIKAYA"},null,null,"Olayın\nÖzeti:  ",{"$f":"(ANASAYFA!E14)","v":"Tuvalette sigara içmek"}]
[null,null,"SINIFI",null,{"$f":"(ANASAYFA!E7)","v":"11/C"}]
[null,null,"OKUL NO","                  ",{"$f":"(ANASAYFA!E8)","v":785}]
[null,null," SORULAR"]
[null,null,{"$f":"CONCATENATE(\"       \"&ANASAYFA!E14&\"   fiilini    işlediğiniz   \"&TEXT(ANASAYFA!E13,\"gg.aa.yyyy\")&\"   tarihli  disiplin dilekçesinden  anlaşılmaktadır.  Ortaöğretim  Kurumları  Disiplin Yönetmeliğinin  164. Maddesi \",\"   \"&(ANASAYFA!G22),\"  Fıkrası    \"&(ANASAYFA!E17),\"    Davranışının  karşılığı olan     \"&(ANASAYFA!E18)& \"     Cezası ile cezalandırılmanız gerekmektedir.  Olayla  ilgili savunmanızı aşağıdaki bölüme yazınız.\")","v":"       Tuvalette sigara içmek   fiilini    işlediğiniz   05.11.2018   tarihli  disiplin dilekçesinden  anlaşılmaktadır.  Ortaöğretim  Kurumları  Disiplin Yönetmeliğinin  164. Maddesi    1  Fıkrası    ç) Tütün ve tütün mamullerini bulundurmak veya kullanmak    Davranışının  karşılığı olan     Kınama     Cezası ile cezalandırılmanız gerekmektedir.  Olayla  ilgili savunmanızı aşağıdaki bölüme yazınız."}]
[null,null,"NOT: "]
[null,null,null,{"$f":"('OKUL BİL.GİR.'!D9)","v":"Figen Yeşil ÖNCÜL"},null,null,{"$f":"('OKUL BİL.GİR.'!D10)","v":"Alaattin KILIÇ"},null,null,{"$f":"('OKUL BİL.GİR.'!D8)","v":"Murat SANCAKÇEKEN"}]
[null,null,null,"Üye (Öğretmen)",null,null,"Üye (Öğretmen)",null,null,"Disiplin Kurulu Başkanı"]
[]
[null,null,"İfadenize  buradan başlayınız ve  sayfanın arkasına  yazmayınız."]
[null,null,"………………….....…………...……….…...…….……………………………………………………………………………………………………………..……………………….………………"]
[null,null,"………………….....…………...……….…...…….……………………………………………………………………………………………………………..……………………….………………"]
[null,null,"………………….....…………...……….…...…….……………………………………………………………………………………………………………..……………………….………………"]
[null,null,"………………….....…………...……….…...…….……………………………………………………………………………………………………………..……………………….………………"]
[null,null,"………………….....…………...……….…...…….……………………………………………………………………………………………………………..……………………….………………"]
[null,null,"………………….....…………...……….…...…….……………………………………………………………………………………………………………..……………………….………………"]
[null,null,"………………….....…………...……….…...…….……………………………………………………………………………………………………………..……………………….………………"]
[null,null,"………………….....…………...……….…...…….……………………………………………………………………………………………………………..……………………….………………"]
[null,null,"………………….....…………...……….…...…….……………………………………………………………………………………………………………..……………………….………………"]
[null,null,"………………….....…………...……….…...…….……………………………………………………………………………………………………………..……………………….………………"]
[null,null,"………………….....…………...……….…...…….……………………………………………………………………………………………………………..……………………….………………"]
[null,null,"………………….....…………...……….…...…….……………………………………………………………………………………………………………..……………………….………………"]
[null,null,"………………….....…………...……….…...…….……………………………………………………………………………………………………………..……………………….………………"]
[null,null,"………………….....…………...……….…...…….……………………………………………………………………………………………………………..……………………….………………"]
[null,null,"………………….....…………...……….…...…….……………………………………………………………………………………………………………..……………………….………………"]
[null,null,"………………….....…………...……….…...…….……………………………………………………………………………………………………………..……………………….………………"]
[null,null,"………………….....…………...……….…...…….……………………………………………………………………………………………………………..……………………….………………"]
[null,null,"………………….....…………...……….…...…….……………………………………………………………………………………………………………..……………………….………………"]
[null,null,"………………….....…………...……….…...…….……………………………………………………………………………………………………………..……………………….………………"]
[null,null,"………………….....…………...……….…...…….……………………………………………………………………………………………………………..……………………….………………"]
[null,null,"………………….....…………...……….…...…….……………………………………………………………………………………………………………..……………………….………………"]
[null,null,"………………….....…………...……….…...…….……………………………………………………………………………………………………………..……………………….………………"]
[null,null,"………………….....…………...……….…...…….……………………………………………………………………………………………………………..……………………….………………"]
[null,null,"………………….....…………...……….…...…….……………………………………………………………………………………………………………..……………………….………………"]
[null,null,"………………….....…………...……….…...…….……………………………………………………………………………………………………………..……………………….………………"]
[null,null,"………………….....…………...……….…...…….……………………………………………………………………………………………………………..……………………….………………"]
[null,null,"………………….....…………...……….…...…….……………………………………………………………………………………………………………..……………………….………………"]
[]
[]
[null,null,"………………………………………………………………",null,null,null,null,null,null,null,"İMZA    :"]
[null,null,"      İFADE SAHİBİNİN ADI SOYADI",null,null,null,null,null,null,null,"TARİH   :"]

{"sheet":"KARAR ÖRN","index":9,"n_rows":506,"n_cols":26,"rows_kept":506,"cut":false,"hidden":false,"merged":[[0,1,0,11],[43,5,43,8],[33,2,33,3],[33,4,33,5],[33,6,33,7],[41,4,41,8],[37,2,37,10],[36,2,36,10],[39,2,39,10],[40,2,40,10],[33,9,33,10],[30,2,30,6],[30,7,30,10],[32,4,32,5],[32,6,32,7],[32,9,32,10],[31,2,31,3],[31,4,31,5],[31,6,31,7],[31,9,31,10],[32,2,32,3],[27,2,27,6],[27,7,27,10],[28,2,28,6],[29,2,29,6],[29,7,29,10],[28,7,28,10],[24,2,24,6],[24,7,24,10],[25,2,25,6],[25,7,25,10],[26,2,26,6],[26,7,26,10],[21,2,21,6],[21,7,21,10],[22,2,22,6],[22,7,22,10],[23,2,23,6],[23,7,23,10],[18,2,18,6],[18,7,18,10],[19,2,19,6],[20,2,20,6],[20,7,20,10],[19,7,19,8],[19,9,19,10],[15,2,15,6],[15,7,15,10],[16,2,16,6],[16,7,16,10],[17,2,17,6],[17,7,17,10],[12,2,12,6],[12,7,12,10],[13,2,13,6],[13,7,13,10],[14,2,14,6],[14,7,14,10],[9,2,9,6],[9,7,9,10],[10,2,10,6],[10,7,10,10],[11,2,11,6],[11,7,11,10],[6,2,6,6],[6,7,6,10],[7,2,7,6],[7,7,7,10],[8,2,8,6],[8,7,8,10],[5,2,5,6],[5,7,5,10],[1,2,1,9],[3,2,3,6],[3,7,3,10],[4,2,4,6],[4,7,4,10],[505,0,505,2],[503,0,503,2],[499,3,499,8],[500,3,500,8],[501,3,501,8],[502,3,502,8],[503,3,503,8],[504,3,504,8],[505,3,505,8],[504,0,504,2],[499,0,499,2],[500,0,500,2],[501,0,501,2],[502,0,502,2]]}
[null,"OKUL ÖĞRENCİ ÖDÜL VE DİSİPLİN KURULU KARARI"]
[null,null,"OKUL ÖĞRENCİ ÖDÜL VE DİSİPLİN KURULU KARARI",null,null,null,null,null,null,null,"EK-1",null,null,null,null,null,null,null,null,null,null,null,null,null,null,"Ceza Türü"]
[]
[null,null,"Karar No",null,null,null,null,10,null,null,null,null,null,null,null,null,null,null,null,null,null,null,null,null,null,"Uyarı"]
[null,null,"Karar Tarihi ",null,null,null,null,"2018-10-25",null,null,null,null,null,null,null,null,null,null,null,null,null,null,null,null,null,"Kınama"]
[null,null,"Öğrencinin Adı Soyadı",null,null,null,null,{"$f":"(ANASAYFA!E5)","v":"ALİ  SARIKAYA"},null,null,null,null,null,null,null,null,null,null,null,null,null,null,null,null,null,"Okuldan Kısa Süreli Uzaklaştırma"]
[null,null,"Doğum Tarihi ",null,null,null,null,{"$f":"(ANASAYFA!E10)","v":"KAYSERİ / 01/05/2002"},null,null,null,null,null,null,null,null,null,null,null,null,null,null,null,null,null,"Okul Değiştirme"]
[null,null,"Sınıfı, alanı/dalı ve okul numarası",null,null,null,null,{"$f":"CONCATENATE(ANASAYFA!E7&\" - \",ANASAYFA!E8)","v":"11/C - 785"},null,null,null,null,null,null,null,null,null,null,null,null,null,null,null,null,null,"Örgün Eğitim Dışına Çıkarma"]
[null,null,"Paralı veya parasız yatılı ya da gündüzlü olduğu",null,null,null,null,"Gündüzlü"]
[null,null,"Başarı durumu ",null,null,null,null,"ORTA",null,null,null,null,null,null,null,null,null,null,null,null,null,null,null,null,null,"Okuldan Kısa Süreli Uzaklaştırma Süresi"]
[null,null,"Sağlık durumu ",null,null,null,null,"NORMAL"]
[null,null,"Ailesinin ekonomik durumu ",null,null,null,null,"ORTA",null,null,null,null,null,null,null,null,null,null,null,null,null,null,null,null,null,"1 GÜN"]
[null,null,"Ailesi ile birlikte oturup oturmadığı",null,null,null,null,"Ailesi ile birlikte",null,null,null,null,null,null,null,null,null,null,null,null,null,null,null,null,null,"2 GÜN"]
[null,null,"Anne-babasının sağ olup olmadığı",null,null,null,null,"Baba vefat etmiş",null,null,null,null,null,null,null,null,null,null,null,null,null,null,null,null,null,"3 GÜN"]
[null,null,"Anne-babasının öz olup olmadığı",null,null,null,null,"Anne öz baba üvey",null,null,null,null,null,null,null,null,null,null,null,null,null,null,null,null,null,"4 GÜN"]
[null,null,"Ailesinin yanında okuyup okumadığı",null,null,null,null,"Ailesi ile birlikte",null,null,null,null,null,null,null,null,null,null,null,null,null,null,null,null,null,"5 GÜN"]
[null,null,"Büyüyüp yetiştiği çevre ",null,null,null,null,"Büyük şehir"]
[null,null,"Ailesinin oturduğu yer ve çevresi",null,null,null,null,"Büyük şehir",null,null,null,null,null,null,null,null,null,null,null,null,null,null,null,null,null,"Burslu"]
[null,null,"Şimdiye kadar aldığı cezalar ve genel durumu ",null,null,null,null,"Yok",null,null,null,null,null,null,null,null,null,null,null,null,null,null,null,null,null,"Parasız Yatılı"]
[null,null,"Cezayı gerektiren davranışının yapıldığı yer ve tarih",null,null,null,null,"Sınıf",null,{"$f":"CONCATENATE(TEXT(ANASAYFA!E13,\" gg.aa.yyyy\"))","v":" 05.11.2018"},null,null,null,null,null,null,null,null,null,null,null,null,null,null,null,"Gündüzlü"]
[null,null,"Cezayı gerektiren davranışının çeşidi",null,null,null,null,{"$f":"(ANASAYFA!E17)","v":"ç) Tütün ve tütün mamullerini bulundurmak veya kullanmak"}]
[null,null,"Cezayı gerektiren davranışının nedeni",null,null,null,null,"Kurallara uymamak"]
[null,null,"Olayla ilgili olarak;"]
[null,null,"a) Cezalandırılan öğrencinin ifadesinin özeti ",null,null,null,null,"Daha dikkatli olacağını belirti"]
[null,null,"b) Tanıkların ifadesinin özeti ",null,null,null,null,"………."]
[null,null,"c)Varsa cezayı gerektiren davranışının tespitine yarayan diğer deliller",null,null,null,null,"………"]
[null,null,"Cezayı hafifleten veya şiddetlendiren nedenler",null,null,null,null,"…………"]
[null,null,"Okul öğrenci ödül ve disiplin kurulunun kanaati",null,null,null,null,"Cezanın öğrencinin davranışını düzeltmede etkili olacağı düşünülmektedir."]
[null,null,"Verilen cezanın çeşidi ve dayandığı  Ortaöğretim Kurumları yönetmelik maddesi",null,null,null,null,{"$f":"(CONCATENATE(ANASAYFA!E22)&\" Maddenin   \"&(ANASAYFA!G22)&\" .  Fıkrası   \"&(ANASAYFA!I22)&\"  Bendi\")","v":"164 . Maddenin   1 .  Fıkrası   ç  Bendi"}]
[null,null,"OKUL ÖĞRENCİ ÖDÜL VE DİSİPLİN KURULU KARARI",null,null,null,null,"Orta Öğretim kurumları Yönetmeliğinin   164. Maddesinin     .Fıkrasının        bendine göre           cezası ile cezalandırılmasına  oy birliği ile karar verilmiştir."]
[]
[null,null,{"$f":"('OKUL BİL.GİR.'!D8)","v":"Murat SANCAKÇEKEN"},null,{"$f":"('OKUL BİL.GİR.'!D9)","v":"Figen Yeşil ÖNCÜL"},null,{"$f":"('OKUL BİL.GİR.'!D10)","v":"Alaattin KILIÇ"},null,{"$f":"('OKUL BİL.GİR.'!D11)","v":"Hatice GÜRÜN"},{"$f":"('OKUL BİL.GİR.'!D12)","v":"Serpil İlksen DELİSOY"}]
[null,null,"Müdür Yardımcısı",null,"Öğretmen",null,"Öğretmen",null,"Okul-Aile B.Bşk.","Onur K. 2.Bşk."]
[null,null,"Disiplin Kurulu Bşk.",null,"Üye",null,"Üye",null,"Üye","Üye"]
[]
[]
[null,null,"UYGUNDUR"]
[null,null,"………../………./20……"]
[]
[null,null,{"$f":"('OKUL BİL.GİR.'!D7)","v":"Alparslan TOYOĞLU  "}]
[null,null,"Okul Müdürü"]
[]
[]
[]
[]
[]
[]
[]
[]
[]
[]
[]
[]
[]
[]
[]
[]
[]
[]
[]
[]
[]
[]
[]
[]
[]
[]
[]
[]
[]
[]
[]
[]
[]
[]
[]
[]
[]
[]
[]
[]
[]
[]
[]
[]
[]
[]
[]
[]
[]
[]
[]
[]
[]
[]
[]
[]
[]
[]
[]
[]
[]
[]
[]
[]
[]
[]
[]
[]
[]
[]
[]
[]
[]
[]
[]
[]
[]
[]
[]
[]
[]
[]
[]
[]
[]
[]
[]
[]
[]
[]
[]
[]
[]
[]
[]
[]
[]
[]
[]
[]
[]
[]
[]
[]
[]
[]
[]
[]
[]
[]
[]
[]
[]
[]
[]
[]
[]
[]
[]
[]
[]
[]
[]
[]
[]
[]
[]
[]
[]
[]
[]
[]
[]
[]
[]
[]
[]
[]
[]
[]
[]
[]
[]
[]
[]
[]
[]
[]
[]
[]
[]
[]
[]
[]
[]
[]
[]
[]
[]
[]
[]
[]
[]
[]
[]
[]
[]
[]
[]
[]
[]
[]
[]
[]
[]
[]
[]
[]
[]
[]
[]
[]
[]
[]
[]
[]
[]
[]
[]
[]
[]
[]
[]
[]
[]
[]
[]
[]
[]
[]
[]
[]
[]
[]
[]
[]
[]
[]
[]
[]
[]
[]
[]
[]
[]
[]
[]
[]
[]
[]
[]
[]
[]
[]
[]
[]
[]
[]
[]
[]
[]
[]
[]
[]
[]
[]
[]
[]
[]
[]
[]
[]
[]
[]
[]
[]
[]
[]
[]
[]
[]
[]
[]
[]
[]
[]
[]
[]
[]
[]
[]
[]
[]
[]
[]
[]
[]
[]
[]
[]
[]
[]
[]
[]
[]
[]
[]
[]
[]
[]
[]
[]
[]
[]
[]
[]
[]
[]
[]
[]
[]
[]
[]
[]
[]
[]
[]
[]
[]
[]
[]
[]
[]
[]
[]
[]
[]
[]
[]
[]
[]
[]
[]
[]
[]
[]
[]
[]
[]
[]
[]
[]
[]
[]
[]
[]
[]
[]
[]
[]
[]
[]
[]
[]
[]
[]
[]
[]
[]
[]
[]
[]
[]
[]
[]
[]
[]
[]
[]
[]
[]
[]
[]
[]
[]
[]
[]
[]
[]
[]
[]
[]
[]
[]
[]
[]
[]
[]
[]
[]
[]
[]
[]
[]
[]
[]
[]
[]
[]
[]
[]
[]
[]
[]
[]
[]
[]
[]
[]
[]
[]
[]
[]
[]
[]
[]
[]
[]
[]
[]
[]
[]
[]
[]
[]
[]
[]
[]
[]
[]
[]
[]
[]
[]
[]
[]
[]
[]
[]
[]
[]
[]
[]
[]
[]
[]
[]
[]
[]
[]
[]
[]
[]
[]
[]
[]
[]
[]
[]
[]
[]
[]
[]
[]
[]
[]
[]
[]
[]
[]
[]
[]
[]
[]
[]
[]
[]
[]
["Karar No",null,null,{"$f":"(H4)","v":10}]
["Karar Tarihi ",null,null,{"$f":"(H5)","v":"2018-10-25"}]
["Öğrencinin Adı Soyadı",null,null,{"$f":"(H6)","v":"ALİ  SARIKAYA"}]
["Doğum Tarihi ",null,null,{"$f":"(H7)","v":"KAYSERİ / 01/05/2002"}]
["Sınıfı",null,null,{"$f":"(ANASAYFA!E7)","v":"11/C"}]
["Okul No",null,null,{"$f":"(ANASAYFA!E8)","v":785}]
["Cezanın Türü",null,null,{"$f":"(ANASAYFA!E18)","v":"Kınama"}]

{"sheet":"VELİ UYARI","index":10,"n_rows":35,"n_cols":10,"rows_kept":35,"cut":false,"hidden":false,"merged":[[0,1,0,11],[34,2,34,10],[31,2,31,4],[31,5,31,10],[21,9,21,10],[22,9,22,10],[24,2,24,10],[25,2,25,4],[26,2,26,4],[28,2,28,4],[30,2,30,4],[25,5,25,10],[26,5,26,10],[28,5,28,10],[30,5,30,10],[27,2,27,4],[27,5,27,10],[29,2,29,4],[29,5,29,10],[6,3,6,6],[10,4,10,10],[9,4,9,5],[9,6,9,8],[11,2,11,10],[15,2,15,10],[16,2,16,10],[1,2,1,10],[2,2,2,10],[3,2,3,10],[5,9,5,10],[5,3,5,6]]}
[null," CEZA DUYURU  TEZKERESİ"]
[null,null,{"$f":"('OKUL BİL.GİR.'!D2)","v":"T.C."}]
[null,null,{"$f":"('OKUL BİL.GİR.'!D3)","v":"KOCASİNAN KAYMAKAMLIĞI"}]
[null,null,{"$f":"('OKUL BİL.GİR.'!D4)","v":"Kocasinan 75.Yıl Cumhuriyet Anadolu  Lisesi Müdürlüğü"}]
[]
[null,null,"Sayı :",{"$f":"CONCATENATE('OKUL BİL.GİR.'!D5&\"-225.02 / \",'OKUL BİL.GİR.'!F5)","v":"25354484-225.02 / 1"},null,null,null,null,null,{"$f":"TODAY()","v":"2018-12-26"}]
[null,null,"Konu:","Disiplin Kurulu Kararı"]
[]
[]
[null,null,null,null,"Sayın:",null,{"$f":"(ANASAYFA!E9)","v":"AYŞE SARIKAYA"}]
[]
[null,null,{"$f":"CONCATENATE(ANASAYFA!E11&(ANASAYFA!G11&\"\"))","v":"KOCASİNAN /KAYSERİ"}]
[]
[]
[]
[null,null,{"$f":"CONCATENATE(\"             Velisi bulunduğunuz  \"&ANASAYFA!E7&\"  Sınıfı   \"&ANASAYFA!E8&\"  nolu  \"&ANASAYFA!E5&\",   Ortaöğretim Kurumları yönetmeliğinin Onuncu Kısım  Üçüncü  Bölüm 164. Maddesinin \"&ANASAYFA!G22&\"  Fıkrasına  göre  \"&ANASAYFA!E18&\" cezasını gerektiren bir davranış sergilemesinden dolayı disiplin kurulu öğrencinin \"&ANASAYFA!E18&\" Cezası ile cezalandırılmasını uygun bulmuştur.\")","v":"             Velisi bulunduğunuz  11/C  Sınıfı   785  nolu  ALİ  SARIKAYA,   Ortaöğretim Kurumları yönetmeliğinin Onuncu Kısım  Üçüncü  Bölüm 164. Maddesinin 1  Fıkrasına  göre  Kınama cezasını gerektiren bir davranış sergilemesinden dolayı disiplin kurulu öğrencinin Kınama Cezası ile cezalandırılmasını uygun bulmuştur."}]
[null,null,"            Bilgilerinize sunar, daha kötü sonuçlar doğurabilecek davranışlara yönelmesini önlemek için okul idaresi, rehberlik servisi ve öğretmenleri ile işbirliği yapmanızı, bundan sonra işleyeceği her suçtan dolayı cezasının ağırlaşacağının bilinmesini rica ederim.             "]
[]
[]
[]
[]
[null,null,null,null,null,null,null,null,null,{"$f":"('OKUL BİL.GİR.'!D7)","v":"Alparslan TOYOĞLU  "}]
[null,null,null,null,null,null,null,null,null,"Okul Müdürü"]
[]
[null,null,"ÖĞRENCİ CEZA DUYURU TEZKERESİ"]
[null,null,"Cezayı Gerektiren Davranış",null,null,{"$f":"ANASAYFA!E17","v":"ç) Tütün ve tütün mamullerini bulundurmak veya kullanmak"}]
[null,null,"Cezayı Veren Kurul",null,null,"Okul Öğrenci Ödül ve Disiplin Kurulu"]
[null,null,"Verilen Cezanın Türü",null,null,{"$f":"(ANASAYFA!E18)","v":"Kınama"}]
[null,null,"Okuldan Uzaklaştırma Süresi\n",null,null,{"$f":"(ANASAYFA!E20)","v":0}]
[null,null,"Cezalı Olduğu Günler",null,null,{"$f":"(ANASAYFA!H20)","v":"00:00:00"}]
[null,null,"Kırılan Davranış Notu",null,null,{"$f":"CONCATENATE(ANASAYFA!E19,\"  Puan\")","v":"10  Puan"}]
[null,null,"Kalan Davranış Notu",null,null,{"$f":"CONCATENATE(ANASAYFA!H19&\" Puan\")","v":"90 Puan"}]
[]
[]
[null,null,"NOT: Bu duyuru iadeli taahhütlü olarak gönderilir. Belgeleri saklanır."]

{"sheet":"VELİ  UYARI-2","index":11,"n_rows":35,"n_cols":10,"rows_kept":35,"cut":false,"hidden":false,"merged":[[0,1,0,11],[35,2,35,10],[30,2,30,4],[30,5,30,10],[31,2,31,4],[31,5,31,10],[34,2,34,10],[27,2,27,4],[27,5,27,10],[28,2,28,4],[28,5,28,10],[29,2,29,4],[29,5,29,10],[26,2,26,4],[26,5,26,10],[9,4,9,5],[9,6,9,8],[10,4,10,10],[11,2,11,10],[15,2,15,10],[16,2,16,10],[21,9,21,10],[22,9,22,10],[24,2,24,10],[25,2,25,4],[25,5,25,10],[6,3,6,6],[1,2,1,10],[2,2,2,10],[3,2,3,10],[5,3,5,6],[5,9,5,10]]}
[null," CEZA DUYURU  TEZKERESİ"]
[null,null,{"$f":"('OKUL BİL.GİR.'!D2)","v":"T.C."}]
[null,null,{"$f":"('OKUL BİL.GİR.'!D3)","v":"KOCASİNAN KAYMAKAMLIĞI"}]
[null,null,{"$f":"('OKUL BİL.GİR.'!D4)","v":"Kocasinan 75.Yıl Cumhuriyet Anadolu  Lisesi Müdürlüğü"}]
[]
[null,null,"Sayı :",{"$f":"CONCATENATE('OKUL BİL.GİR.'!D5&\"-225.02 / \",'OKUL BİL.GİR.'!F5)","v":"25354484-225.02 / 1"},null,null,null,null,null,{"$f":"TODAY()","v":"2018-12-26"}]
[null,null,"Konu:","Disiplin Kurulu Kararı"]
[]
[]
[null,null,null,null,"Sayın:",null,{"$f":"(ANASAYFA!E9)","v":"AYŞE SARIKAYA"}]
[]
[null,null,{"$f":"CONCATENATE(ANASAYFA!E11&(ANASAYFA!G11&\"\"))","v":"KOCASİNAN /KAYSERİ"}]
[]
[]
[]
[null,null,"            Velisi bulunduğunuz  11/D  Sınıfı   123  Nolu  Öğrencisi ALİ KAYA,  Disiplin cezasını gerektiren bir davranış sergilemesinden dolayı,     okulumuz disiplin kurulu  öğrencinin aşağıdaki ceza ile cezalandırılmasını  uygun bulmuştur."]
[null,null,"            Bilgilerinize sunar, daha kötü sonuçlar doğurabilecek davranışlara yönelmesini önlemek için okul idaresi, rehberlik servisi ve öğretmenleri ile işbirliği yapmanızı, bundan sonra işleyeceği her suçtan dolayı cezasının ağırlaşacağının bilinmesini rica ederim.             "]
[]
[]
[]
[]
[null,null,null,null,null,null,null,null,null,{"$f":"('OKUL BİL.GİR.'!D7)","v":"Alparslan TOYOĞLU  "}]
[null,null,null,null,null,null,null,null,null,"Okul Müdürü"]
[]
[null,null,"ÖĞRENCİ CEZA DUYURU TEZKERESİ"]
[null,null,"Cezayı Gerektiren Davranış"]
[null,null,"Cezayı Veren Kurul",null,null,"Okul Öğrenci Ödül ve Disiplin Kurulu"]
[null,5,"Verilen Cezanın Türü"]
[null,7,"Okuldan Uzaklaştırma Süresi\n"]
[null,null,"Cezalı Olduğu Günler"]
[null,null,"Kırılan Davranış Notu"]
[null,null,"Kalan Davranış Notu"]
[]
[]
[null,null,"NOT: Bu duyuru iadeli taahhütlü olarak gönderilir. Belgeleri saklanır."]

{"sheet":"TOPLU CEZA LİS.","index":12,"n_rows":52,"n_cols":9,"rows_kept":52,"cut":false,"hidden":true,"merged":[]}
[]
[null,"SIRA\n NO","ADI VE SOYADI","SINIF","NO","KARAR\n NO","KARAR\n TARİHİ","DAVRANIŞ","CEZA  MADDESİ"]
[null,1,{"$f":"('CEZA ALAN ÖĞR. LİS.'!C2)","v":"ALİ  SARIKAYA"},{"$f":"(ANASAYFA!$E$7)","v":"11/C"},{"$f":"(ANASAYFA!$E$8)","v":785},{"$f":"('KARAR ÖRN'!$H$4)","v":10},{"$f":"('KARAR ÖRN'!$H$5)","v":"2018-10-25"},{"$f":"('KARAR ÖRN'!$H$30)","v":"Orta Öğretim kurumları Yönetmeliğinin   164. Maddesinin     .Fıkrasının        bendine göre           cezası ile cezalandırılmasına  oy birliği ile karar verilmiştir."},{"$f":"('KARAR ÖRN'!$H$29)","v":"164 . Maddenin   1 .  Fıkrası   ç  Bendi"}]
[null,2]
[null,3]
[null,4]
[null,5]
[null,6]
[null,7]
[null,8]
[null,9]
[null,10]
[null,11]
[null,12]
[null,13]
[null,14]
[null,15]
[null,16]
[null,17]
[null,18]
[null,19]
[null,20]
[null,21]
[null,22]
[null,23]
[null,24]
[null,25]
[null,26]
[null,27]
[null,28]
[null,29]
[null,30]
[null,31]
[null,32]
[null,33]
[null,34]
[null,35]
[null,36]
[null,37]
[null,38]
[null,39]
[null,40]
[null,41]
[null,42]
[null,43]
[null,44]
[null,45]
[null,46]
[null,47]
[null,48]
[null,49]
[null,50]

{"sheet":"CEZA ALAN ÖĞR. LİS.","index":13,"n_rows":2,"n_cols":6,"rows_kept":2,"cut":false,"hidden":false,"merged":[]}
["Karar \nNo","Karar Tarihi ","Öğrencinin Adı Soyadı","Doğum Tarihi ","Sınıfı ve Okul No","Cezanın Türünü\nSeçiniz"]
[10,"2018-10-25","ALİ  SARIKAYA","KAYSERİ / 01/05/2002","11/C - 785","Kınama"]

{"sheet":"TANIK İFA.TUT1","index":14,"n_rows":47,"n_cols":12,"rows_kept":47,"cut":false,"hidden":false,"merged":[[0,2,0,11],[10,6,10,8],[10,9,10,11],[47,6,47,8],[47,9,47,10],[43,7,43,8],[43,9,43,11],[44,7,44,8],[44,9,44,11],[45,6,45,8],[46,6,46,8],[11,3,11,5],[11,6,11,8],[11,9,11,11],[1,2,1,11],[2,2,2,11],[8,2,8,11],[9,2,9,11],[10,3,10,5],[3,2,3,10],[5,2,5,3],[5,4,5,6],[5,7,7,7],[5,8,7,11],[6,2,6,3],[6,4,6,6],[7,4,7,6],[7,2,7,3]]}
[null,null,"TANIK  İFADE TUTANAĞI"]
[null,null,{"$f":"UPPER('OKUL BİL.GİR.'!D4)","v":"KOCASİNAN 75.YIL CUMHURİYET ANADOLU  LİSESİ MÜDÜRLÜĞÜ"}]
[null,null,"DİSİPLİN KURULU  İFADE ALMA TUTANAĞI"]
[null,null,"                                                    (Tanık İfade Tutanağı)",null,null,null,null,null,null,null,null,{"$f":"TODAY()","v":"2018-12-26"}]
[]
[null,null,"ADI- SOYADI                 ",null,{"$f":"('TANIK BİL.GİRİŞ'!E3)","v":"deneme"},null,null,"Olayın\n Özeti  ",{"$f":"(ANASAYFA!E14)","v":"Tuvalette sigara içmek"}]
[null,null,"SINIFI",null,{"$f":"('TANIK BİL.GİRİŞ'!E4)","v":"11/A"}]
[null,null,"OKUL NO",null,{"$f":"('TANIK BİL.GİRİŞ'!E5)","v":11111}]
[null,null," SORULAR"]
[null,null,{"$f":"CONCATENATE(TEXT(ANASAYFA!E13,\"      gg.aa.yyyy\")&\"  tarihin \"&\" de \"&ANASAYFA!E14&\" fiilinin  işlendiği  \"&TEXT( ANASAYFA!E13,\"gg.aa.yyyy\")&\"  tarihli  disiplin tutanağından tespit edilmiştir.    Bu  olayla ilgili bildiklerinizi ve söylemek istediklerinizi aşağıdaki bölüme yazınız.\")","v":"      05.11.2018  tarihin  de Tuvalette sigara içmek fiilinin  işlendiği  05.11.2018  tarihli  disiplin tutanağından tespit edilmiştir.    Bu  olayla ilgili bildiklerinizi ve söylemek istediklerinizi aşağıdaki bölüme yazınız."}]
[null,null,null,null,null,null,null,null,null,{"$f":"('OKUL BİL.GİR.'!D8)","v":"Murat SANCAKÇEKEN"}]
[null,null,null,null,null,null,null,null,null,"Disiplin Kurulu Başkanı"]
[]
[null,null,"İfadenize  buradan başlayınız ve  sayfanın arkasına  yazmayınız."]
[null,null,"………………….....…………...……….…...…….……………………………………………………………………………………………………………..……………………….……………"]
[null,null,"………………….....…………...……….…...…….……………………………………………………………………………………………………………..……………………….……………"]
[null,null,"………………….....…………...……….…...…….……………………………………………………………………………………………………………..……………………….……………"]
[null,null,"………………….....…………...……….…...…….……………………………………………………………………………………………………………..……………………….……………"]
[null,null,"………………….....…………...……….…...…….……………………………………………………………………………………………………………..……………………….……………"]
[null,null,"………………….....…………...……….…...…….……………………………………………………………………………………………………………..……………………….……………"]
[null,null,"………………….....…………...……….…...…….……………………………………………………………………………………………………………..……………………….……………"]
[null,null,"………………….....…………...……….…...…….……………………………………………………………………………………………………………..……………………….……………"]
[null,null,"………………….....…………...……….…...…….……………………………………………………………………………………………………………..……………………….……………"]
[null,null,"………………….....…………...……….…...…….……………………………………………………………………………………………………………..……………………….……………"]
[null,null,"………………….....…………...……….…...…….……………………………………………………………………………………………………………..……………………….……………"]
[null,null,"………………….....…………...……….…...…….……………………………………………………………………………………………………………..……………………….……………"]
[null,null,"………………….....…………...……….…...…….……………………………………………………………………………………………………………..……………………….……………"]
[null,null,"………………….....…………...……….…...…….……………………………………………………………………………………………………………..……………………….……………"]
[null,null,"………………….....…………...……….…...…….……………………………………………………………………………………………………………..……………………….……………"]
[null,null,"………………….....…………...……….…...…….……………………………………………………………………………………………………………..……………………….……………"]
[null,null,"………………….....…………...……….…...…….……………………………………………………………………………………………………………..……………………….……………"]
[null,null,"………………….....…………...……….…...…….……………………………………………………………………………………………………………..……………………….……………"]
[null,null,"………………….....…………...……….…...…….……………………………………………………………………………………………………………..……………………….……………"]
[null,null,"………………….....…………...……….…...…….……………………………………………………………………………………………………………..……………………….……………"]
[null,null,"………………….....…………...……….…...…….……………………………………………………………………………………………………………..……………………….……………"]
[null,null,"………………….....…………...……….…...…….……………………………………………………………………………………………………………..……………………….……………"]
[null,null,"………………….....…………...……….…...…….……………………………………………………………………………………………………………..……………………….……………"]
[null,null,"………………….....…………...……….…...…….……………………………………………………………………………………………………………..……………………….……………"]
[null,null,"………………….....…………...……….…...…….……………………………………………………………………………………………………………..……………………….……………"]
[null,null,"………………….....…………...……….…...…….……………………………………………………………………………………………………………..……………………….……………"]
[null,null,"………………….....…………...……….…...…….……………………………………………………………………………………………………………..……………………….……………"]
[null,null,"………………….....…………...……….…...…….……………………………………………………………………………………………………………..……………………….……………"]
[null,null,"………………….....…………...……….…...…….……………………………………………………………………………………………………………..……………………….……………"]
[]
[]
[null,null,"………………………………………………………………",null,null,null,null,null,null,null,"İMZA    :"]
[null,null,"      İFADE SAHİBİNİN ADI SOYADI",null,null,null,null,null,null,null,"TARİH   :"]

{"sheet":"TANIK İFA.TUT2","index":15,"n_rows":48,"n_cols":12,"rows_kept":48,"cut":false,"hidden":false,"merged":[[9,2,9,11],[10,3,10,5],[10,6,10,8],[10,9,10,11],[48,6,48,8],[48,9,48,10],[44,7,44,8],[44,9,44,11],[45,7,45,8],[45,9,45,11],[46,6,46,8],[47,6,47,8],[0,2,0,11],[7,2,7,3],[11,3,11,5],[11,6,11,8],[11,9,11,11],[1,2,1,11],[2,2,2,11],[3,2,3,10],[5,2,5,3],[5,4,5,6],[5,7,7,7],[5,8,7,11],[6,2,6,3],[6,4,6,6],[7,4,7,6],[8,2,8,11]]}
[null,null,"TANIK İFADE TUTANAĞI"]
[null,null,{"$f":"UPPER('OKUL BİL.GİR.'!D4)","v":"KOCASİNAN 75.YIL CUMHURİYET ANADOLU  LİSESİ MÜDÜRLÜĞÜ"}]
[null,null,"DİSİPLİN KURULU  İFADE ALMA TUTANAĞI"]
[null,null,"                                                   ( Tanık İfade Tutanağı)",null,null,null,null,null,null,null,null,{"$f":"TODAY()","v":"2018-12-26"}]
[]
[null,null,"ADI- SOYADI                 ",null,{"$f":"('TANIK BİL.GİRİŞ'!E7)","v":0},null,null,"Olayın\n Özeti  ",{"$f":"(ANASAYFA!E14)","v":"Tuvalette sigara içmek"}]
[null,null,"SINIFI",null,{"$f":"('TANIK BİL.GİRİŞ'!E8)","v":0}]
[null,null,"OKUL NO",null,{"$f":"('TANIK BİL.GİRİŞ'!E9)","v":0}]
[null,null," SORULAR"]
[null,null,{"$f":"CONCATENATE(TEXT(ANASAYFA!E13,\"      gg.aa.yyyy\")&\"  tarihin \"&\" de \"&ANASAYFA!E14&\" fiilinin  işlendiği  \"&TEXT( ANASAYFA!E13,\"gg.aa.yyyy\")&\"  tarihli  disiplin tutanağından tespit edilmiştir.    Bu  olayla ilgili bildiklerinizi ve söylemek istediklerinizi aşağıdaki bölüme yazınız.\")","v":"      05.11.2018  tarihin  de Tuvalette sigara içmek fiilinin  işlendiği  05.11.2018  tarihli  disiplin tutanağından tespit edilmiştir.    Bu  olayla ilgili bildiklerinizi ve söylemek istediklerinizi aşağıdaki bölüme yazınız."}]
[null,null,null,null,null,null,null,null,null,{"$f":"('OKUL BİL.GİR.'!D8)","v":"Murat SANCAKÇEKEN"}]
[null,null,null,null,null,null,null,null,null,"Disiplin Kurulu Başkanı"]
[]
[null,null,"İfadenize  buradan başlayınız ve  sayfanın arkasına  yazmayınız."]
[null,null,"………………….....…………...……….…...…….……………………………………………………………………………………………………………..……………………….……………"]
[null,null,"………………….....…………...……….…...…….……………………………………………………………………………………………………………..……………………….……………"]
[null,null,"………………….....…………...……….…...…….……………………………………………………………………………………………………………..……………………….……………"]
[null,null,"………………….....…………...……….…...…….……………………………………………………………………………………………………………..……………………….……………"]
[null,null,"………………….....…………...……….…...…….……………………………………………………………………………………………………………..……………………….……………"]
[null,null,"………………….....…………...……….…...…….……………………………………………………………………………………………………………..……………………….……………"]
[null,null,"………………….....…………...……….…...…….……………………………………………………………………………………………………………..……………………….……………"]
[null,null,"………………….....…………...……….…...…….……………………………………………………………………………………………………………..……………………….……………"]
[null,null,"………………….....…………...……….…...…….……………………………………………………………………………………………………………..……………………….……………"]
[null,null,"………………….....…………...……….…...…….……………………………………………………………………………………………………………..……………………….……………"]
[null,null,"………………….....…………...……….…...…….……………………………………………………………………………………………………………..……………………….……………"]
[null,null,"………………….....…………...……….…...…….……………………………………………………………………………………………………………..……………………….……………"]
[null,null,"………………….....…………...……….…...…….……………………………………………………………………………………………………………..……………………….……………"]
[null,null,"………………….....…………...……….…...…….……………………………………………………………………………………………………………..……………………….……………"]
[null,null,"………………….....…………...……….…...…….……………………………………………………………………………………………………………..……………………….……………"]
[null,null,"………………….....…………...……….…...…….……………………………………………………………………………………………………………..……………………….……………"]
[null,null,"………………….....…………...……….…...…….……………………………………………………………………………………………………………..……………………….……………"]
[null,null,"………………….....…………...……….…...…….……………………………………………………………………………………………………………..……………………….……………"]
[null,null,"………………….....…………...……….…...…….……………………………………………………………………………………………………………..……………………….……………"]
[null,null,"………………….....…………...……….…...…….……………………………………………………………………………………………………………..……………………….……………"]
[null,null,"………………….....…………...……….…...…….……………………………………………………………………………………………………………..……………………….……………"]
[null,null,"………………….....…………...……….…...…….……………………………………………………………………………………………………………..……………………….……………"]
[null,null,"………………….....…………...……….…...…….……………………………………………………………………………………………………………..……………………….……………"]
[null,null,"………………….....…………...……….…...…….……………………………………………………………………………………………………………..……………………….……………"]
[null,null,"………………….....…………...……….…...…….……………………………………………………………………………………………………………..……………………….……………"]
[null,null,"………………….....…………...……….…...…….……………………………………………………………………………………………………………..……………………….……………"]
[null,null,"………………….....…………...……….…...…….……………………………………………………………………………………………………………..……………………….……………"]
[null,null,"………………….....…………...……….…...…….……………………………………………………………………………………………………………..……………………….……………"]
[null,null,"………………….....…………...……….…...…….……………………………………………………………………………………………………………..……………………….……………"]
[null,null,"………………….....…………...……….…...…….……………………………………………………………………………………………………………..……………………….……………"]
[]
[]
[null,null,"………………………………………………………………",null,null,null,null,null,null,null,"İMZA       :"]
[null,null,"      İFADE SAHİBİNİN ADI SOYADI",null,null,null,null,null,null,null,"TARİH     :"]

{"sheet":"TANIK İFA.TUT3","index":16,"n_rows":48,"n_cols":12,"rows_kept":48,"cut":false,"hidden":false,"merged":[[9,2,9,11],[10,3,10,5],[10,6,10,8],[10,9,10,11],[48,6,48,8],[48,9,48,10],[44,7,44,8],[44,9,44,11],[45,7,45,8],[45,9,45,11],[46,6,46,8],[47,6,47,8],[0,2,0,11],[7,2,7,3],[11,3,11,5],[11,6,11,8],[11,9,11,11],[1,2,1,11],[2,2,2,11],[3,2,3,10],[5,2,5,3],[5,4,5,6],[5,7,7,7],[5,8,7,11],[6,2,6,3],[6,4,6,6],[7,4,7,6],[8,2,8,11]]}
[null,null,"TANIK İFADE TUTANAĞI"]
[null,null,{"$f":"UPPER('OKUL BİL.GİR.'!D4)","v":"KOCASİNAN 75.YIL CUMHURİYET ANADOLU  LİSESİ MÜDÜRLÜĞÜ"}]
[null,null,"DİSİPLİN KURULU  İFADE ALMA TUTANAĞI"]
[null,null,"                                                  ( Tanık İfade Tutanağı)",null,null,null,null,null,null,null,null,{"$f":"TODAY()","v":"2018-12-26"}]
[]
[null,null,"ADI- SOYADI                 ",null,{"$f":"('TANIK BİL.GİRİŞ'!E11)","v":0},null,null,"Olayın\n Özeti  ",{"$f":"(ANASAYFA!E14)","v":"Tuvalette sigara içmek"}]
[null,null,"SINIFI",null,{"$f":"('TANIK BİL.GİRİŞ'!E12)","v":0}]
[null,null,"OKUL NO",null,{"$f":"('TANIK BİL.GİRİŞ'!E13)","v":0}]
[null,null," SORULAR"]
[null,null,{"$f":"CONCATENATE(TEXT(ANASAYFA!E13,\"      gg.aa.yyyy\")&\"  tarihin \"&\" de \"&ANASAYFA!E14&\" fiilinin  işlendiği  \"&TEXT( ANASAYFA!E13,\"gg.aa.yyyy\")&\"  tarihli  disiplin tutanağından tespit edilmiştir.    Bu  olayla ilgili bildiklerinizi ve söylemek istediklerinizi aşağıdaki bölüme yazınız.\")","v":"      05.11.2018  tarihin  de Tuvalette sigara içmek fiilinin  işlendiği  05.11.2018  tarihli  disiplin tutanağından tespit edilmiştir.    Bu  olayla ilgili bildiklerinizi ve söylemek istediklerinizi aşağıdaki bölüme yazınız."}]
[null,null,null,null,null,null,null,null,null,{"$f":"('OKUL BİL.GİR.'!D8)","v":"Murat SANCAKÇEKEN"}]
[null,null,null,null,null,null,null,null,null,"Disiplin Kurulu Başkanı"]
[]
[null,null,"İfadenize  buradan başlayınız ve  sayfanın arkasına  yazmayınız."]
[null,null,"………………….....…………...……….…...…….……………………………………………………………………………………………………………..……………………….……………"]
[null,null,"………………….....…………...……….…...…….……………………………………………………………………………………………………………..……………………….……………"]
[null,null,"………………….....…………...……….…...…….……………………………………………………………………………………………………………..……………………….……………"]
[null,null,"………………….....…………...……….…...…….……………………………………………………………………………………………………………..……………………….……………"]
[null,null,"………………….....…………...……….…...…….……………………………………………………………………………………………………………..……………………….……………"]
[null,null,"………………….....…………...……….…...…….……………………………………………………………………………………………………………..……………………….……………"]
[null,null,"………………….....…………...……….…...…….……………………………………………………………………………………………………………..……………………….……………"]
[null,null,"………………….....…………...……….…...…….……………………………………………………………………………………………………………..……………………….……………"]
[null,null,"………………….....…………...……….…...…….……………………………………………………………………………………………………………..……………………….……………"]
[null,null,"………………….....…………...……….…...…….……………………………………………………………………………………………………………..……………………….……………"]
[null,null,"………………….....…………...……….…...…….……………………………………………………………………………………………………………..……………………….……………"]
[null,null,"………………….....…………...……….…...…….……………………………………………………………………………………………………………..……………………….……………"]
[null,null,"………………….....…………...……….…...…….……………………………………………………………………………………………………………..……………………….……………"]
[null,null,"………………….....…………...……….…...…….……………………………………………………………………………………………………………..……………………….……………"]
[null,null,"………………….....…………...……….…...…….……………………………………………………………………………………………………………..……………………….……………"]
[null,null,"………………….....…………...……….…...…….……………………………………………………………………………………………………………..……………………….……………"]
[null,null,"………………….....…………...……….…...…….……………………………………………………………………………………………………………..……………………….……………"]
[null,null,"………………….....…………...……….…...…….……………………………………………………………………………………………………………..……………………….……………"]
[null,null,"………………….....…………...……….…...…….……………………………………………………………………………………………………………..……………………….……………"]
[null,null,"………………….....…………...……….…...…….……………………………………………………………………………………………………………..……………………….……………"]
[null,null,"………………….....…………...……….…...…….……………………………………………………………………………………………………………..……………………….……………"]
[null,null,"………………….....…………...……….…...…….……………………………………………………………………………………………………………..……………………….……………"]
[null,null,"………………….....…………...……….…...…….……………………………………………………………………………………………………………..……………………….……………"]
[null,null,"………………….....…………...……….…...…….……………………………………………………………………………………………………………..……………………….……………"]
[null,null,"………………….....…………...……….…...…….……………………………………………………………………………………………………………..……………………….……………"]
[null,null,"………………….....…………...……….…...…….……………………………………………………………………………………………………………..……………………….……………"]
[null,null,"………………….....…………...……….…...…….……………………………………………………………………………………………………………..……………………….……………"]
[null,null,"………………….....…………...……….…...…….……………………………………………………………………………………………………………..……………………….……………"]
[null,null,"………………….....…………...……….…...…….……………………………………………………………………………………………………………..……………………….……………"]
[null,null,"………………….....…………...……….…...…….……………………………………………………………………………………………………………..……………………….……………"]
[]
[]
[null,null,"………………………………………………………………",null,null,null,null,null,null,null,"İMZA    :"]
[null,null,"      İFADE SAHİBİNİN ADI SOYADI",null,null,null,null,null,null,null,"TARİH   :"]

{"sheet":"TANIK İFA.TUT4","index":17,"n_rows":48,"n_cols":12,"rows_kept":48,"cut":false,"hidden":false,"merged":[[9,2,9,11],[10,3,10,5],[10,6,10,8],[10,9,10,11],[48,6,48,8],[48,9,48,10],[44,7,44,8],[44,9,44,11],[45,7,45,8],[45,9,45,11],[46,6,46,8],[47,6,47,8],[0,2,0,11],[7,2,7,3],[11,3,11,5],[11,6,11,8],[11,9,11,11],[1,2,1,11],[2,2,2,11],[3,2,3,10],[5,2,5,3],[5,4,5,6],[5,7,7,7],[5,8,7,11],[6,2,6,3],[6,4,6,6],[7,4,7,6],[8,2,8,11]]}
[null,null,"TANIK İFADE TUTANAĞI"]
[null,null,{"$f":"UPPER('OKUL BİL.GİR.'!D4)","v":"KOCASİNAN 75.YIL CUMHURİYET ANADOLU  LİSESİ MÜDÜRLÜĞÜ"}]
[null,null,"DİSİPLİN KURULU  İFADE ALMA TUTANAĞI"]
[null,null,"                                                    Tanık İfade Tutanağı",null,null,null,null,null,null,null,null,{"$f":"TODAY()","v":"2018-12-26"}]
[]
[null,null,"ADI- SOYADI                 ",null,{"$f":"('TANIK BİL.GİRİŞ'!E15)","v":0},null,null,"Olayın\n Özeti",{"$f":"(ANASAYFA!E14)","v":"Tuvalette sigara içmek"}]
[null,null,"SINIFI",null,{"$f":"('TANIK BİL.GİRİŞ'!E16)","v":0}]
[null,null,"OKUL NO",null,{"$f":"('TANIK BİL.GİRİŞ'!E17)","v":0}]
[null,null," SORULAR"]
[null,null,{"$f":"CONCATENATE(TEXT(ANASAYFA!E13,\"      gg.aa.yyyy\")&\"  tarihin \"&\" de \"&ANASAYFA!E14&\" fiilinin  işlendiği  \"&TEXT( ANASAYFA!E13,\"gg.aa.yyyy\")&\"  tarihli  disiplin tutanağından tespit edilmiştir.    Bu  olayla ilgili bildiklerinizi ve söylemek istediklerinizi aşağıdaki bölüme yazınız.\")","v":"      05.11.2018  tarihin  de Tuvalette sigara içmek fiilinin  işlendiği  05.11.2018  tarihli  disiplin tutanağından tespit edilmiştir.    Bu  olayla ilgili bildiklerinizi ve söylemek istediklerinizi aşağıdaki bölüme yazınız."}]
[null,null,null,null,null,null,null,null,null,{"$f":"('OKUL BİL.GİR.'!D8)","v":"Murat SANCAKÇEKEN"}]
[null,null,null,null,null,null,null,null,null,"Disiplin Kurulu Başkanı"]
[]
[null,null,"İfadenize  buradan başlayınız ve  sayfanın arkasına  yazmayınız."]
[null,null,"………………….....…………...……….…...…….……………………………………………………………………………………………………………..……………………….………………"]
[null,null,"………………….....…………...……….…...…….……………………………………………………………………………………………………………..……………………….………………"]
[null,null,"………………….....…………...……….…...…….……………………………………………………………………………………………………………..……………………….………………"]
[null,null,"………………….....…………...……….…...…….……………………………………………………………………………………………………………..……………………….………………"]
[null,null,"………………….....…………...……….…...…….……………………………………………………………………………………………………………..……………………….………………"]
[null,null,"………………….....…………...……….…...…….……………………………………………………………………………………………………………..……………………….………………"]
[null,null,"………………….....…………...……….…...…….……………………………………………………………………………………………………………..……………………….………………"]
[null,null,"………………….....…………...……….…...…….……………………………………………………………………………………………………………..……………………….………………"]
[null,null,"………………….....…………...……….…...…….……………………………………………………………………………………………………………..……………………….………………"]
[null,null,"………………….....…………...……….…...…….……………………………………………………………………………………………………………..……………………….………………"]
[null,null,"………………….....…………...……….…...…….……………………………………………………………………………………………………………..……………………….………………"]
[null,null,"………………….....…………...……….…...…….……………………………………………………………………………………………………………..……………………….………………"]
[null,null,"………………….....…………...……….…...…….……………………………………………………………………………………………………………..……………………….………………"]
[null,null,"………………….....…………...……….…...…….……………………………………………………………………………………………………………..……………………….………………"]
[null,null,"………………….....…………...……….…...…….……………………………………………………………………………………………………………..……………………….………………"]
[null,null,"………………….....…………...……….…...…….……………………………………………………………………………………………………………..……………………….………………"]
[null,null,"………………….....…………...……….…...…….……………………………………………………………………………………………………………..……………………….………………"]
[null,null,"………………….....…………...……….…...…….……………………………………………………………………………………………………………..……………………….………………"]
[null,null,"………………….....…………...……….…...…….……………………………………………………………………………………………………………..……………………….………………"]
[null,null,"………………….....…………...……….…...…….……………………………………………………………………………………………………………..……………………….………………"]
[null,null,"………………….....…………...……….…...…….……………………………………………………………………………………………………………..……………………….………………"]
[null,null,"………………….....…………...……….…...…….……………………………………………………………………………………………………………..……………………….………………"]
[null,null,"………………….....…………...……….…...…….……………………………………………………………………………………………………………..……………………….………………"]
[null,null,"………………….....…………...……….…...…….……………………………………………………………………………………………………………..……………………….………………"]
[null,null,"………………….....…………...……….…...…….……………………………………………………………………………………………………………..……………………….………………"]
[null,null,"………………….....…………...……….…...…….……………………………………………………………………………………………………………..……………………….………………"]
[null,null,"………………….....…………...……….…...…….……………………………………………………………………………………………………………..……………………….………………"]
[null,null,"………………….....…………...……….…...…….……………………………………………………………………………………………………………..……………………….………………"]
[null,null,"………………….....…………...……….…...…….……………………………………………………………………………………………………………..……………………….………………"]
[null,null,"………………….....…………...……….…...…….……………………………………………………………………………………………………………..……………………….………………"]
[]
[]
[null,null,"………………………………………………………………",null,null,null,null,null,null,null,"İMZA    :"]
[null,null,"      İFADE SAHİBİNİN ADI SOYADI",null,null,null,null,null,null,null,"TARİH  :"]

{"sheet":"TANIK İFA.TUT5","index":18,"n_rows":48,"n_cols":12,"rows_kept":48,"cut":false,"hidden":false,"merged":[[9,2,9,11],[10,3,10,5],[10,6,10,8],[10,9,10,11],[48,6,48,8],[48,9,48,10],[44,7,44,8],[44,9,44,11],[45,7,45,8],[45,9,45,11],[46,6,46,8],[47,6,47,8],[0,2,0,11],[7,2,7,3],[11,3,11,5],[11,6,11,8],[11,9,11,11],[1,2,1,11],[2,2,2,11],[3,2,3,10],[5,2,5,3],[5,4,5,6],[5,7,7,7],[5,8,7,11],[6,2,6,3],[6,4,6,6],[7,4,7,6],[8,2,8,11]]}
[null,null,"TANIK İFADE TUTANAĞI"]
[null,null,{"$f":"UPPER('OKUL BİL.GİR.'!D4)","v":"KOCASİNAN 75.YIL CUMHURİYET ANADOLU  LİSESİ MÜDÜRLÜĞÜ"}]
[null,null,"DİSİPLİN KURULU  İFADE ALMA TUTANAĞI"]
[null,null,"                                                    Tanık İfade Tutanağı",null,null,null,null,null,null,null,null,{"$f":"TODAY()","v":"2018-12-26"}]
[]
[null,null,"ADI- SOYADI                 ",null,{"$f":"('TANIK BİL.GİRİŞ'!E19)","v":0},null,null,"Olayın\n Özeti ",{"$f":"(ANASAYFA!E14)","v":"Tuvalette sigara içmek"}]
[null,null,"SINIFI",null,{"$f":"('TANIK BİL.GİRİŞ'!E20)","v":0}]
[null,null,"OKUL NO",null,{"$f":"('TANIK BİL.GİRİŞ'!E21)","v":0}]
[null,null," SORULAR"]
[null,null,{"$f":"CONCATENATE(TEXT(ANASAYFA!E13,\"      gg.aa.yyyy\")&\"  tarihin \"&\" de \"&ANASAYFA!E14&\" fiilinin  işlendiği  \"&TEXT( ANASAYFA!E13,\"gg.aa.yyyy\")&\"  tarihli  disiplin tutanağından tespit edilmiştir.    Bu  olayla ilgili bildiklerinizi ve söylemek istediklerinizi aşağıdaki bölüme yazınız.\")","v":"      05.11.2018  tarihin  de Tuvalette sigara içmek fiilinin  işlendiği  05.11.2018  tarihli  disiplin tutanağından tespit edilmiştir.    Bu  olayla ilgili bildiklerinizi ve söylemek istediklerinizi aşağıdaki bölüme yazınız."}]
[null,null,null,null,null,null,null,null,null,{"$f":"('OKUL BİL.GİR.'!D8)","v":"Murat SANCAKÇEKEN"}]
[null,null,null,null,null,null,null,null,null,"Disiplin Kurulu Başkanı"]
[]
[null,null,"İfadenize  buradan başlayınız ve  sayfanın arkasına  yazmayınız."]
[null,null,"………………….....…………...……….…...…….……………………………………………………………………………………………………………..……………………….……………"]
[null,null,"………………….....…………...……….…...…….……………………………………………………………………………………………………………..……………………….……………"]
[null,null,"………………….....…………...……….…...…….……………………………………………………………………………………………………………..……………………….……………"]
[null,null,"………………….....…………...……….…...…….……………………………………………………………………………………………………………..……………………….……………"]
[null,null,"………………….....…………...……….…...…….……………………………………………………………………………………………………………..……………………….……………"]
[null,null,"………………….....…………...……….…...…….……………………………………………………………………………………………………………..……………………….……………"]
[null,null,"………………….....…………...……….…...…….……………………………………………………………………………………………………………..……………………….……………"]
[null,null,"………………….....…………...……….…...…….……………………………………………………………………………………………………………..……………………….……………"]
[null,null,"………………….....…………...……….…...…….……………………………………………………………………………………………………………..……………………….……………"]
[null,null,"………………….....…………...……….…...…….……………………………………………………………………………………………………………..……………………….……………"]
[null,null,"………………….....…………...……….…...…….……………………………………………………………………………………………………………..……………………….……………"]
[null,null,"………………….....…………...……….…...…….……………………………………………………………………………………………………………..……………………….……………"]
[null,null,"………………….....…………...……….…...…….……………………………………………………………………………………………………………..……………………….……………"]
[null,null,"………………….....…………...……….…...…….……………………………………………………………………………………………………………..……………………….……………"]
[null,null,"………………….....…………...……….…...…….……………………………………………………………………………………………………………..……………………….……………"]
[null,null,"………………….....…………...……….…...…….……………………………………………………………………………………………………………..……………………….……………"]
[null,null,"………………….....…………...……….…...…….……………………………………………………………………………………………………………..……………………….……………"]
[null,null,"………………….....…………...……….…...…….……………………………………………………………………………………………………………..……………………….……………"]
[null,null,"………………….....…………...……….…...…….……………………………………………………………………………………………………………..……………………….……………"]
[null,null,"………………….....…………...……….…...…….……………………………………………………………………………………………………………..……………………….……………"]
[null,null,"………………….....…………...……….…...…….……………………………………………………………………………………………………………..……………………….……………"]
[null,null,"………………….....…………...……….…...…….……………………………………………………………………………………………………………..……………………….……………"]
[null,null,"………………….....…………...……….…...…….……………………………………………………………………………………………………………..……………………….……………"]
[null,null,"………………….....…………...……….…...…….……………………………………………………………………………………………………………..……………………….……………"]
[null,null,"………………….....…………...……….…...…….……………………………………………………………………………………………………………..……………………….……………"]
[null,null,"………………….....…………...……….…...…….……………………………………………………………………………………………………………..……………………….……………"]
[null,null,"………………….....…………...……….…...…….……………………………………………………………………………………………………………..……………………….……………"]
[null,null,"………………….....…………...……….…...…….……………………………………………………………………………………………………………..……………………….……………"]
[null,null,"………………….....…………...……….…...…….……………………………………………………………………………………………………………..……………………….……………"]
[null,null,"………………….....…………...……….…...…….……………………………………………………………………………………………………………..……………………….……………"]
[]
[]
[null,null,"………………………………………………………………",null,null,null,null,null,null,null,"İMZA    :"]
[null,null,"      İFADE SAHİBİNİN ADI SOYADI",null,null,null,null,null,null,null,"TARİH :"]

{"sheet":"TANIK İFA.TUT6","index":19,"n_rows":48,"n_cols":12,"rows_kept":48,"cut":false,"hidden":false,"merged":[[9,2,9,11],[10,3,10,5],[10,6,10,8],[10,9,10,11],[48,6,48,8],[48,9,48,10],[44,7,44,8],[44,9,44,11],[45,7,45,8],[45,9,45,11],[46,6,46,8],[47,6,47,8],[0,2,0,11],[7,2,7,3],[11,3,11,5],[11,6,11,8],[11,9,11,11],[1,2,1,11],[2,2,2,11],[3,2,3,10],[5,2,5,3],[5,4,5,6],[5,7,7,7],[5,8,7,11],[6,2,6,3],[6,4,6,6],[7,4,7,6],[8,2,8,11]]}
[null,null,"TANIK İFADE TUTANAĞI"]
[null,null,{"$f":"UPPER('OKUL BİL.GİR.'!D4)","v":"KOCASİNAN 75.YIL CUMHURİYET ANADOLU  LİSESİ MÜDÜRLÜĞÜ"}]
[null,null,"DİSİPLİN KURULU  İFADE ALMA TUTANAĞI"]
[null,null,"                                                    Tanık İfade Tutanağı",null,null,null,null,null,null,null,null,{"$f":"TODAY()","v":"2018-12-26"}]
[]
[null,null,"ADI- SOYADI                 ",null,{"$f":"('TANIK BİL.GİRİŞ'!E23)","v":0},null,null,"Olayın\n Özeti ",{"$f":"(ANASAYFA!E14)","v":"Tuvalette sigara içmek"}]
[null,null,"GÖREVİ",null,{"$f":"('TANIK BİL.GİRİŞ'!E24)","v":0}]
[null,null,"ÜNVANI",null,{"$f":"('TANIK BİL.GİRİŞ'!E25)","v":0}]
[null,null," SORULAR"]
[null,null,{"$f":"CONCATENATE(TEXT(ANASAYFA!E13,\"      gg.aa.yyyy\")&\"  tarihin \"&\" de \"&ANASAYFA!E14&\" fiilinin  işlendiği  \"&TEXT( ANASAYFA!E13,\"gg.aa.yyyy\")&\"  tarihli  disiplin tutanağından tespit edilmiştir.    Bu  olayla ilgili bildiklerinizi ve söylemek istediklerinizi aşağıdaki bölüme yazınız.\")","v":"      05.11.2018  tarihin  de Tuvalette sigara içmek fiilinin  işlendiği  05.11.2018  tarihli  disiplin tutanağından tespit edilmiştir.    Bu  olayla ilgili bildiklerinizi ve söylemek istediklerinizi aşağıdaki bölüme yazınız."}]
[null,null,null,null,null,null,null,null,null,{"$f":"('OKUL BİL.GİR.'!D8)","v":"Murat SANCAKÇEKEN"}]
[null,null,null,null,null,null,null,null,null,"Disiplin Kurulu Başkanı"]
[]
[null,null,"İfadenize  buradan başlayınız ve  sayfanın arkasına  yazmayınız."]
[null,null,"………………….....…………...……….…...…….……………………………………………………………………………………………………………..……………………….………………"]
[null,null,"………………….....…………...……….…...…….……………………………………………………………………………………………………………..……………………….………………"]
[null,null,"………………….....…………...……….…...…….……………………………………………………………………………………………………………..……………………….………………"]
[null,null,"………………….....…………...……….…...…….……………………………………………………………………………………………………………..……………………….………………"]
[null,null,"………………….....…………...……….…...…….……………………………………………………………………………………………………………..……………………….………………"]
[null,null,"………………….....…………...……….…...…….……………………………………………………………………………………………………………..……………………….………………"]
[null,null,"………………….....…………...……….…...…….……………………………………………………………………………………………………………..……………………….………………"]
[null,null,"………………….....…………...……….…...…….……………………………………………………………………………………………………………..……………………….………………"]
[null,null,"………………….....…………...……….…...…….……………………………………………………………………………………………………………..……………………….………………"]
[null,null,"………………….....…………...……….…...…….……………………………………………………………………………………………………………..……………………….………………"]
[null,null,"………………….....…………...……….…...…….……………………………………………………………………………………………………………..……………………….………………"]
[null,null,"………………….....…………...……….…...…….……………………………………………………………………………………………………………..……………………….………………"]
[null,null,"………………….....…………...……….…...…….……………………………………………………………………………………………………………..……………………….………………"]
[null,null,"………………….....…………...……….…...…….……………………………………………………………………………………………………………..……………………….………………"]
[null,null,"………………….....…………...……….…...…….……………………………………………………………………………………………………………..……………………….………………"]
[null,null,"………………….....…………...……….…...…….……………………………………………………………………………………………………………..……………………….………………"]
[null,null,"………………….....…………...……….…...…….……………………………………………………………………………………………………………..……………………….………………"]
[null,null,"………………….....…………...……….…...…….……………………………………………………………………………………………………………..……………………….………………"]
[null,null,"………………….....…………...……….…...…….……………………………………………………………………………………………………………..……………………….………………"]
[null,null,"………………….....…………...……….…...…….……………………………………………………………………………………………………………..……………………….………………"]
[null,null,"………………….....…………...……….…...…….……………………………………………………………………………………………………………..……………………….………………"]
[null,null,"………………….....…………...……….…...…….……………………………………………………………………………………………………………..……………………….………………"]
[null,null,"………………….....…………...……….…...…….……………………………………………………………………………………………………………..……………………….………………"]
[null,null,"………………….....…………...……….…...…….……………………………………………………………………………………………………………..……………………….………………"]
[null,null,"………………….....…………...……….…...…….……………………………………………………………………………………………………………..……………………….………………"]
[null,null,"………………….....…………...……….…...…….……………………………………………………………………………………………………………..……………………….………………"]
[null,null,"………………….....…………...……….…...…….……………………………………………………………………………………………………………..……………………….………………"]
[null,null,"………………….....…………...……….…...…….……………………………………………………………………………………………………………..……………………….………………"]
[null,null,"………………….....…………...……….…...…….……………………………………………………………………………………………………………..……………………….………………"]
[null,null,"………………….....…………...……….…...…….……………………………………………………………………………………………………………..……………………….………………"]
[]
[]
[null,null,"………………………………………………………………",null,null,null,null,null,null,null,"İMZA    :"]
[null,null,"      İFADE SAHİBİNİN ADI SOYADI",null,null,null,null,null,null,null,"TARİH  :"]

{"sheet":"TANIK İFA.TUT7","index":20,"n_rows":48,"n_cols":12,"rows_kept":48,"cut":false,"hidden":false,"merged":[[6,2,6,3],[6,4,6,6],[7,4,7,6],[7,2,7,3],[48,6,48,8],[48,9,48,10],[44,7,44,8],[44,9,44,11],[45,7,45,8],[45,9,45,11],[46,6,46,8],[47,6,47,8],[0,2,0,11],[11,3,11,5],[11,6,11,8],[11,9,11,11],[8,2,8,11],[9,2,9,11],[10,3,10,5],[10,6,10,8],[10,9,10,11],[1,2,1,11],[2,2,2,11],[3,2,3,10],[5,2,5,3],[5,4,5,6],[5,7,7,7],[5,8,7,11]]}
[null,null,"TANIK İFADE TUTANAĞI"]
[null,null,{"$f":"UPPER('OKUL BİL.GİR.'!D4)","v":"KOCASİNAN 75.YIL CUMHURİYET ANADOLU  LİSESİ MÜDÜRLÜĞÜ"}]
[null,null,"DİSİPLİN KURULU  İFADE ALMA TUTANAĞI"]
[null,null,"                                                    Tanık İfade Tutanağı",null,null,null,null,null,null,null,null,{"$f":"TODAY()","v":"2018-12-26"}]
[]
[null,null,"ADI- SOYADI                 ",null,{"$f":"('TANIK BİL.GİRİŞ'!E27)","v":0},null,null,"Olayın\n Özeti  ",{"$f":"(ANASAYFA!E14)","v":"Tuvalette sigara içmek"}]
[null,null,"GÖREVİ",null,{"$f":"('TANIK BİL.GİRİŞ'!E28)","v":0}]
[null,null,"ÜNVANI",null,{"$f":"('TANIK BİL.GİRİŞ'!E29)","v":0}]
[null,null," SORULAR"]
[null,null,{"$f":"CONCATENATE(TEXT(ANASAYFA!E13,\"      gg.aa.yyyy\")&\"  tarihin \"&\" de \"&ANASAYFA!E14&\" fiilinin  işlendiği  \"&TEXT( ANASAYFA!E13,\"gg.aa.yyyy\")&\"  tarihli  disiplin tutanağından tespit edilmiştir.    Bu  olayla ilgili bildiklerinizi ve söylemek istediklerinizi aşağıdaki bölüme yazınız.\")","v":"      05.11.2018  tarihin  de Tuvalette sigara içmek fiilinin  işlendiği  05.11.2018  tarihli  disiplin tutanağından tespit edilmiştir.    Bu  olayla ilgili bildiklerinizi ve söylemek istediklerinizi aşağıdaki bölüme yazınız."}]
[null,null,null,null,null,null,null,null,null,{"$f":"('OKUL BİL.GİR.'!D8)","v":"Murat SANCAKÇEKEN"}]
[null,null,null,null,null,null,null,null,null,"Disiplin Kurulu Başkanı"]
[]
[null,null,"İfadenize  buradan başlayınız ve  sayfanın arkasına  yazmayınız."]
[null,null,"………………….....…………...……….…...…….……………………………………………………………………………………………………………..……………………….………………"]
[null,null,"………………….....…………...……….…...…….……………………………………………………………………………………………………………..……………………….………………"]
[null,null,"………………….....…………...……….…...…….……………………………………………………………………………………………………………..……………………….………………"]
[null,null,"………………….....…………...……….…...…….……………………………………………………………………………………………………………..……………………….………………"]
[null,null,"………………….....…………...……….…...…….……………………………………………………………………………………………………………..……………………….………………"]
[null,null,"………………….....…………...……….…...…….……………………………………………………………………………………………………………..……………………….………………"]
[null,null,"………………….....…………...……….…...…….……………………………………………………………………………………………………………..……………………….………………"]
[null,null,"………………….....…………...……….…...…….……………………………………………………………………………………………………………..……………………….………………"]
[null,null,"………………….....…………...……….…...…….……………………………………………………………………………………………………………..……………………….………………"]
[null,null,"………………….....…………...……….…...…….……………………………………………………………………………………………………………..……………………….………………"]
[null,null,"………………….....…………...……….…...…….……………………………………………………………………………………………………………..……………………….………………"]
[null,null,"………………….....…………...……….…...…….……………………………………………………………………………………………………………..……………………….………………"]
[null,null,"………………….....…………...……….…...…….……………………………………………………………………………………………………………..……………………….………………"]
[null,null,"………………….....…………...……….…...…….……………………………………………………………………………………………………………..……………………….………………"]
[null,null,"………………….....…………...……….…...…….……………………………………………………………………………………………………………..……………………….………………"]
[null,null,"………………….....…………...……….…...…….……………………………………………………………………………………………………………..……………………….………………"]
[null,null,"………………….....…………...……….…...…….……………………………………………………………………………………………………………..……………………….………………"]
[null,null,"………………….....…………...……….…...…….……………………………………………………………………………………………………………..……………………….………………"]
[null,null,"………………….....…………...……….…...…….……………………………………………………………………………………………………………..……………………….………………"]
[null,null,"………………….....…………...……….…...…….……………………………………………………………………………………………………………..……………………….………………"]
[null,null,"………………….....…………...……….…...…….……………………………………………………………………………………………………………..……………………….………………"]
[null,null,"………………….....…………...……….…...…….……………………………………………………………………………………………………………..……………………….………………"]
[null,null,"………………….....…………...……….…...…….……………………………………………………………………………………………………………..……………………….………………"]
[null,null,"………………….....…………...……….…...…….……………………………………………………………………………………………………………..……………………….………………"]
[null,null,"………………….....…………...……….…...…….……………………………………………………………………………………………………………..……………………….………………"]
[null,null,"………………….....…………...……….…...…….……………………………………………………………………………………………………………..……………………….………………"]
[null,null,"………………….....…………...……….…...…….……………………………………………………………………………………………………………..……………………….………………"]
[null,null,"………………….....…………...……….…...…….……………………………………………………………………………………………………………..……………………….………………….…"]
[null,null,"………………….....…………...……….…...…….……………………………………………………………………………………………………………..……………………….………………….…"]
[null,null,"………………….....…………...……….…...…….……………………………………………………………………………………………………………..……………………….………………….…"]
[]
[]
[null,null,"………………………………………………………………",null,null,null,null,null,null,null,"İMZA    :"]
[null,null,"      İFADE SAHİBİNİN ADI SOYADI",null,null,null,null,null,null,null,"TARİH  :"]

{"sheet":"TANIK İFA.TUT8","index":21,"n_rows":49,"n_cols":12,"rows_kept":49,"cut":false,"hidden":false,"merged":[[6,2,6,3],[6,4,6,6],[7,4,7,6],[7,2,7,3],[49,6,49,8],[49,9,49,10],[45,7,45,8],[45,9,45,11],[46,7,46,8],[46,9,46,11],[47,6,47,8],[48,6,48,8],[0,2,0,11],[11,3,11,5],[11,6,11,8],[11,9,11,11],[8,2,8,11],[9,2,9,11],[10,3,10,5],[10,6,10,8],[10,9,10,11],[1,2,1,11],[2,2,2,11],[3,2,3,10],[5,2,5,3],[5,4,5,6],[5,7,7,7],[5,8,7,11]]}
[null,null,"TANIK İFADE TUTANAĞI"]
[null,null,{"$f":"UPPER('OKUL BİL.GİR.'!D4)","v":"KOCASİNAN 75.YIL CUMHURİYET ANADOLU  LİSESİ MÜDÜRLÜĞÜ"}]
[null,null,"DİSİPLİN KURULU  İFADE ALMA TUTANAĞI"]
[null,null,"                                                    Tanık İfade Tutanağı",null,null,null,null,null,null,null,null,{"$f":"TODAY()","v":"2018-12-26"}]
[]
[null,null,"ADI- SOYADI                 ",null,{"$f":"('TANIK BİL.GİRİŞ'!E31)","v":0},null,null,"Olayın\n Özeti  ",{"$f":"(ANASAYFA!E14)","v":"Tuvalette sigara içmek"}]
[null,null,"GÖREVİ",null,{"$f":"('TANIK BİL.GİRİŞ'!E32)","v":0}]
[null,null,"ÜNVANI",null,{"$f":"('TANIK BİL.GİRİŞ'!E33)","v":0}]
[null,null," SORULAR"]
[null,null,{"$f":"CONCATENATE(TEXT(ANASAYFA!E13,\"      gg.aa.yyyy\")&\"  tarihin \"&\" de \"&ANASAYFA!E14&\" fiilinin  işlendiği  \"&TEXT( ANASAYFA!E13,\"gg.aa.yyyy\")&\"  tarihli  disiplin tutanağından tespit edilmiştir.    Bu  olayla ilgili bildiklerinizi ve söylemek istediklerinizi aşağıdaki bölüme yazınız.\")","v":"      05.11.2018  tarihin  de Tuvalette sigara içmek fiilinin  işlendiği  05.11.2018  tarihli  disiplin tutanağından tespit edilmiştir.    Bu  olayla ilgili bildiklerinizi ve söylemek istediklerinizi aşağıdaki bölüme yazınız."}]
[null,null,null,null,null,null,null,null,null,{"$f":"('OKUL BİL.GİR.'!D8)","v":"Murat SANCAKÇEKEN"}]
[null,null,null,null,null,null,null,null,null,"Disiplin Kurulu Başkanı"]
[]
[null,null,"İfadenize  buradan başlayınız ve  sayfanın arkasına  yazmayınız."]
[null,null,"………………….....…………...……….…...…….……………………………………………………………………………………………………………..……………………….……………"]
[null,null,"………………….....…………...……….…...…….……………………………………………………………………………………………………………..……………………….……………"]
[null,null,"………………….....…………...……….…...…….……………………………………………………………………………………………………………..……………………….……………"]
[null,null,"………………….....…………...……….…...…….……………………………………………………………………………………………………………..……………………….……………"]
[null,null,"………………….....…………...……….…...…….……………………………………………………………………………………………………………..……………………….……………"]
[null,null,"………………….....…………...……….…...…….……………………………………………………………………………………………………………..……………………….……………"]
[null,null,"………………….....…………...……….…...…….……………………………………………………………………………………………………………..……………………….……………"]
[null,null,"………………….....…………...……….…...…….……………………………………………………………………………………………………………..……………………….……………"]
[null,null,"………………….....…………...……….…...…….……………………………………………………………………………………………………………..……………………….……………"]
[null,null,"………………….....…………...……….…...…….……………………………………………………………………………………………………………..……………………….……………"]
[null,null,"………………….....…………...……….…...…….……………………………………………………………………………………………………………..……………………….……………"]
[null,null,"………………….....…………...……….…...…….……………………………………………………………………………………………………………..……………………….……………"]
[null,null,"………………….....…………...……….…...…….……………………………………………………………………………………………………………..……………………….……………"]
[null,null,"………………….....…………...……….…...…….……………………………………………………………………………………………………………..……………………….……………"]
[null,null,"………………….....…………...……….…...…….……………………………………………………………………………………………………………..……………………….……………"]
[null,null,"………………….....…………...……….…...…….……………………………………………………………………………………………………………..……………………….……………"]
[null,null,"………………….....…………...……….…...…….……………………………………………………………………………………………………………..……………………….……………"]
[null,null,"………………….....…………...……….…...…….……………………………………………………………………………………………………………..……………………….……………"]
[null,null,"………………….....…………...……….…...…….……………………………………………………………………………………………………………..……………………….……………"]
[null,null,"………………….....…………...……….…...…….……………………………………………………………………………………………………………..……………………….……………"]
[null,null,"………………….....…………...……….…...…….……………………………………………………………………………………………………………..……………………….……………"]
[null,null,"………………….....…………...……….…...…….……………………………………………………………………………………………………………..……………………….……………"]
[null,null,"………………….....…………...……….…...…….……………………………………………………………………………………………………………..……………………….……………"]
[null,null,"………………….....…………...……….…...…….……………………………………………………………………………………………………………..……………………….……………"]
[null,null,"………………….....…………...……….…...…….……………………………………………………………………………………………………………..……………………….……………"]
[null,null,"………………….....…………...……….…...…….……………………………………………………………………………………………………………..……………………….……………"]
[null,null,"………………….....…………...……….…...…….……………………………………………………………………………………………………………..……………………….……………"]
[null,null,"………………….....…………...……….…...…….……………………………………………………………………………………………………………..……………………….……………"]
[null,null,"………………….....…………...……….…...…….……………………………………………………………………………………………………………..……………………….……………"]
[null,null,"………………….....…………...……….…...…….……………………………………………………………………………………………………………..……………………….……………"]
[null,null,"………………….....…………...……….…...…….……………………………………………………………………………………………………………..……………………….……………"]
[]
[]
[null,null,"………………………………………………………………",null,null,null,null,null,null,null,"İMZA    :"]
[null,null,"      İFADE SAHİBİNİN ADI SOYADI",null,null,null,null,null,null,null,"TARİH  :"]

{"sheet":"Dikkat Edilecek Hus.","index":22,"n_rows":0,"n_cols":0,"rows_kept":0,"cut":false,"hidden":false,"merged":[]}

{"sheet":"Açıklama","index":23,"n_rows":27,"n_cols":32,"rows_kept":27,"cut":false,"hidden":false,"merged":[[23,31,25,32],[26,31,27,32],[1,18,1,19],[0,20,1,21],[3,15,7,16],[9,15,12,16],[7,31,10,32],[1,14,1,17],[16,15,19,16],[21,15,23,16],[25,15,29,16],[3,1,3,8],[12,1,12,6],[2,1,2,6],[1,1,1,6],[20,31,22,32]]}
[null,null,null,null,null,null,null,null,null,null,null,null,null,null,null,null,null,null,null,null,"ÖĞRENCİ VE DİSİPLİN \nKURULU ÇAĞRI PUSULASI"]
[null,"AÇIKLAMALAR",null,null,null,null,null,null,null,null,null,null,null,null,"AÇIKLAMALAR",null,null,null,"DİSİPLİN \nYÖNETMELİĞİ"]
[null,"VERİ GİRİŞİ "]
[null,"Yeni kayıt butonuna basarak önceki verileri temizleyiniz.",null,null,null,null,null,null,null,null,null,null,null,null,null,"OKUL /KURUM \nBİLGİLERİNİ GİRİNİZ\nDİSİPLİN KURULU \nBİLGİLERİNİ GİRİNİZ"]
[null,1," Öncelikle  okul /kurum bilgilerini  okul bilgi girişinden girelim."]
[null,2,"Hakkında işlem yapılacak öğrenci bilgilerini ana sayfadan  ÖĞRENCİ BİLGİLERİ kısmına girelim."]
[null,3,"Disiplin konusu olan olayı  ve tarihini girelim"]
[null,4,"Verilecek ceza kısmından  yönetmeliğin ilgili maddesini seçelim",null,null,null,null,null,null,null,null,null,null,null,null,null,null,null,null,null,null,null,null,null,null,null,null,null,null,null,null,"ÖNCEKİ VERİLERİ TEMİZLE \n YENİ KAYIT"]
[null,5,"Verilecek ceza kısmından  yönetmeliğin ilgili maddesi seçilince verilmesi gereken  ceza ve puanı otomatik olarak gelmektedir."]
[null,6,"Yönetmeliğin hangi maddesi ve fıkrasına uyduğu otomatik gelmektedir.",null,null,null,null,null,null,null,null,null,null,null,null,"ÖĞRENCİ BİLGİLERİNİ GİRİNİZ"]
[null,7,"Okuldan kısa süreli uzaklaştırma verilmişse  kaç gün olduğunu  ve ceza tarihlerini  belirleyelim."]
[]
[null,"TUTANAK  İŞLEMLERİ  "]
[]
[null,1,"Disiplin işleminin görüşülmesi için disiplin kurulu üyeleri çağrı pusulası nı giriniz."]
[null,2,"Disiplin işlemi için öğrenci çağrı pusulası  otomatik gelmektedir. "]
[null,3,"Öğrenci ifade tutanağını yazdırarak öğrencinin ifadesini alınız.",null,null,null,null,null,null,null,null,null,null,null,null,"DİSİPLİN OLAYI\n BİLGİLERİNİ GİRİNİZ"]
[null,4,"Disiplin olayı ile ilgili tanık varsa  tanık bilgi girişinden girerek  ifadelerini alınız"]
[null,5,"Öğrenci ifade tutanağını  değerlendirerek   verilecek cezayı  belirleyiniz ve öğrencinin savunması için ifadesini alınız. "]
[null,6,"Karar örneğinin ilgili kısımlarını doldurunuz ve yazdırınız."]
[null,7,"Karar örneğinin ilgili kısımlarını doldurunuz ve  ceza alan öğrenci  kaydet diyerek öğrenciyi  kaydediniz.",null,null,null,null,null,null,null,null,null,null,null,null,null,null,null,null,null,null,null,null,null,null,null,null,null,null,null,null,"DİSİPLİN OLAYINA DENK\nGELEN MADDEYİ SEÇİNİZ"]
[null,8,"Disiplin kurulunun vermiş olduğu ceza bildirimini  veliye tebliğ ediniz.",null,null,null,null,null,null,null,null,null,null,null,null,"DİSİPLİN OLAYINA\n DENK GELEN MADDEYİ SEÇİNİZ"]
[null,9,"Öğrenci  aynı suçtan farklı zamanda ceza almışsa ve bir üst  ceza verilecekse karar sayfasında o ceza girilmeli "]
[null,10,"Ceza alan öğrenci toplu ceza listesine kaydedildiği için dönem sonunda  listeyi alabilirsiniz.",null,null,null,null,null,null,null,null,null,null,null,null,null,null,null,null,null,null,null,null,null,null,null,null,null,null,null,null,"OKULDAN KISA SÜRELİ UZAKLAŞTIRMAVERİLMİŞSE SÜRESİNİ VE TARİHİ GİRİNİZ"]
[]
[null,null,null,null,null,null,null,null,null,null,null,null,null,null,null,"CEZA MADDESİNE GÖRE\n DAVRANIŞ PUANI OTOMATİK GELMEKTEDİR."]
[null,null,null,null,null,null,null,null,null,null,null,null,null,null,null,null,null,null,null,null,null,null,null,null,null,null,null,null,null,null,null,"YÖNETMELİK FIKRASI\n VE BENDİ"]

{"sheet":"Sayfa2","index":24,"n_rows":0,"n_cols":0,"rows_kept":0,"cut":false,"hidden":false,"merged":[]}